Workbook

Sheet 图形
D1: 分层图 | G1: 正态概率 | I1: 时间序列图 | O1: 散布图（边际图） | Z1: 柏拉图2 | AB1: 课堂练习
A3: histogram（L2） | D3: 维修不良数 | E3: 线别 | G3: 供应商1 | I3: 时间 | J3: 销售量 | K3: TIME SERIES2 | O3: 高度 | P3: 重量 | Q3: 脉搏 | R3: 设备1 | V3: 设备2 | Z3: 缺陷 | AA3: 不良数量 | AB3: 卡尺1 | AC3: 卡尺2
A4: 92.81 | B4: L2 | D4: 92.81 | E4: L2 | G4: 598 | I4: 2006-07-10 | J4: 173 | K4: 103 | O4: 1.55 | P4: 46 | Q4: 66 | R4: 20.53 | S4: 20.52 | T4: 20.10 | U4: 20.50 | V4: 19.50 | W4: 19.47 | X4: 19.30 | Y4: 19.97 | Z4: 伤线 | AA4: 98641 | AB4: 295.399 | AC4: 301.065
A5: 97.83 | B5: L2 | D5: 97.83 | E5: L2 | G5: 599.8 | I5: 2006-07-11 | J5: 100 | K5: 51 | O5: 1.6 | P5: 53 | Q5: 63 | R5: 20.40 | S5: 20.39 | T5: 20.12 | U5: 20.70 | V5: 20.40 | W5: 19.88 | X5: 19.87 | Y5: 19.88 | Z5: 多胶 | AA5: 5655 | AB5: 303.622 | AC5: 307.656
A6: 94.37 | B6: L2 | D6: 94.37 | E6: L2 | G6: 600 | I6: 2006-07-12 | J6: 104 | K6: 130 | O6: 1.65 | P6: 61 | Q6: 68 | R6: 20.30 | S6: 20.40 | T6: 21.00 | U6: 20.83 | V6: 20.78 | W6: 20.12 | X6: 20.04 | Y6: 20.10 | Z6: 断针 | AA6: 1331 | AB6: 310.789 | AC6: 303.983
A7: 95.4 | B7: L2 | D7: 95.4 | E7: L2 | G7: 599.8 | I7: 2006-07-13 | J7: 106 | K7: 122 | O7: 1.7 | P7: 67 | Q7: 76 | R7: 20.55 | S7: 20.37 | T7: 20.04 | U7: 20.14 | V7: 20.34 | W7: 20.07 | X7: 20.58 | Y7: 20.14 | Z7: 斑点 | AA7: 156 | AB7: 302.233 | AC7: 304.903
A8: 91.2 | B8: L2 | D8: 91.2 | E8: L2 | G8: 600 | I8: 2006-07-14 | J8: 177 | K8: 126 | O8: 1.75 | P8: 68 | Q8: 77 | R8: 20.51 | S8: 20.38 | T8: 21.05 | U8: 20.02 | V8: 20.21 | W8: 20.03 | X8: 20.10 | Y8: 20.25 | Z8: 毛丝 | AA8: 1356 | AB8: 306.169 | AC8: 295.289
A9: 95.69 | B9: L2 | D9: 95.69 | E9: L2 | G9: 600 | I9: 2006-07-15 | J9: 80 | K9: 136 | O9: 1.8 | P9: 84 | Q9: 82 | Z9: 变形 | AA9: 26568 | AB9: 298.026 | AC9: 295.001
A10: 94.63 | B10: L2 | D10: 94.63 | E10: L2 | G10: 598.8 | I10: 2006-07-16 | J10: 148 | K10: 132 | O10: 1.85 | P10: 78 | Q10: 78 | Z10: 其它 | AA10: 1556 | AB10: 291.572 | AC10: 304.177
A11: 94.99 | B11: L2 | D11: 94.99 | E11: L2 | G11: 598.2 | I11: 2006-07-17 | J11: 103 | K11: 69 | O11: 1.9 | P11: 83 | Q11: 85 | Z11: 伤线 | AA11: 25464 | AB11: 298.501 | AC11: 302.239
A12: 94.06 | B12: L2 | D12: 94.06 | E12: L2 | G12: 599.4 | I12: 2006-07-18 | J12: 139 | K12: 147 | O12: 1.95 | P12: 92 | Q12: 84 | Z12: 多胶 | AA12: 16464 | AB12: 302.957 | AC12: 301.848
A13: 96.58 | B13: L2 | D13: 96.58 | E13: L2 | G13: 599.6 | I13: 2006-07-19 | J13: 85 | K13: 87 | O13: 2 | P13: 99 | Q13: 92 | Z13: 断针 | AA13: 4164 | AB13: 299.675 | AC13: 299.266
A14: 95.86 | B14: L2 | D14: 95.86 | E14: L2 | G14: 599.4 | O14: 2.05 | P14: 117 | Q14: 98 | Z14: 斑点 | AA14: 46874 | AB14: 292.165 | AC14: 302.37
A15: 97.98 | B15: L2 | D15: 97.98 | E15: L2 | G15: 599.4 | Z15: 毛丝 | AA15: 565 | AB15: 298.855 | AC15: 302.594
A16: 94.25 | B16: L2 | D16: 94.25 | E16: L2 | G16: 600 | Z16: 变形 | AA16: 464 | AB16: 296.138 | AC16: 302.561
A17: 93.46 | B17: L2 | D17: 93.46 | E17: L2 | G17: 598.8 | Z17: 其它 | AA17: 468 | AB17: 299.422 | AC17: 305.439
A18: 91.12 | B18: L2 | D18: 91.12 | E18: L2 | G18: 599.2 | Z18: 伤线 | AA18: 31646 | AB18: 302.946 | AC18: 305.537
A19: 93.99 | B19: L2 | D19: 93.99 | E19: L2 | G19: 599.4 | Z19: 多胶 | AA19: 464 | AB19: 298.496 | AC19: 294.43
A20: 94.41 | B20: L2 | D20: 94.41 | E20: L2 | G20: 599.6 | Z20: 断针 | AA20: 4664 | AB20: 297.273 | AC20: 301.663
A21: 91.35 | B21: L2 | D21: 91.35 | E21: L2 | G21: 599 | Z21: 斑点 | AA21: 4646 | AB21: 302.932 | AC21: 292.255
A22: 93.15 | B22: L2 | D22: 93.15 | E22: L2 | G22: 599.2 | Z22: 毛丝 | AA22: 65484 | AB22: 288.307 | AC22: 291.465
A23: 97 | B23: L2 | D23: 97 | E23: L2 | G23: 600.6 | Z23: 变形 | AA23: 58764 | AB23: 299.106 | AC23: 301.622
A24: 92.97 | B24: L2 | D24: 92.97 | E24: L2 | G24: 598.8 | Z24: 其它 | AA24: 456
A25: 95.81 | B25: L2 | D25: 95.81 | E25: L2 | G25: 598.8
A26: 95.81 | B26: L2 | D26: 95.81 | E26: L2 | G26: 599.8
A27: 95.64 | B27: L2 | D27: 95.64 | E27: L2 | G27: 599.2
A28: 93.37 | B28: L2 | D28: 93.37 | E28: L2 | G28: 599.4
A29: 94.46 | B29: L2 | D29: 94.46 | E29: L2 | G29: 600
A30: 96.38 | B30: L2 | D30: 96.38 | E30: L2 | G30: 600.2
A31: 96.23 | B31: L2 | D31: 96.23 | E31: L2 | G31: 600.2
A32: 92.34 | B32: L2 | D32: 92.34 | E32: L2 | G32: 599.6
A33: 94.82 | B33: L2 | D33: 94.82 | E33: L2 | G33: 599
D34: 99.74 | E34: L1 | G34: 599
D35: 101.23 | E35: L1 | G35: 599.8
D36: 101.56 | E36: L1 | G36: 600.8
D37: 99.55 | E37: L1 | G37: 598.8
D38: 101.76 | E38: L1 | G38: 598.2
D39: 98.27 | E39: L1 | G39: 600
D40: 99.53 | E40: L1 | G40: 599.2
D41: 100.09 | E41: L1 | G41: 599.8
D42: 99.92 | E42: L1 | G42: 601.2
D43: 100.58 | E43: L1 | G43: 600.4
D44: 101.05 | E44: L1 | G44: 600.2
D45: 100.03 | E45: L1 | G45: 599.6
D46: 98.99 | E46: L1 | G46: 599.6
D47: 100.33 | E47: L1 | G47: 599.6
D48: 99.03 | E48: L1 | G48: 600.2
D49: 101.54 | E49: L1 | G49: 599.2
D50: 98.4 | E50: L1 | G50: 599
D51: 100.48 | E51: L1 | G51: 599.6
D52: 99.75 | E52: L1 | G52: 600.4
D53: 98.84 | E53: L1 | G53: 600
D54: 101.65 | E54: L1 | G54: 599
D55: 99.28 | E55: L1 | G55: 599.6
D56: 99.41 | E56: L1 | G56: 599.4
D57: 98.63 | E57: L1 | G57: 599.2
D58: 100.4 | E58: L1 | G58: 597.8
D59: 100.69 | E59: L1 | G59: 600.4
D60: 99.29 | E60: L1 | G60: 599.6
D61: 99.8 | E61: L1 | G61: 600
D62: 100.04 | E62: L1 | G62: 600.8
D63: 102.31 | E63: L1 | G63: 600.4
G64: 599.4
G65: 599
G66: 598.4
G67: 599
G68: 599.6
G69: 598.8
G70: 599.2
G71: 599.6
G72: 598.6
G73: 599.8
G74: 599.6
G75: 599.2
G76: 599.6
G77: 600.2
G78: 599.8
G79: 599.6
G80: 600
G81: 599.6
G82: 599.2
G83: 598.6
G84: 599.6
G85: 601.2
G86: 599.6
G87: 600.2
G88: 600
G89: 600
G90: 599.4
G91: 599.8
G92: 599.2
G93: 599.6
G94: 599.4
G95: 600
G96: 600
G97: 599.2
G98: 599.4
G99: 599.6
G100: 599.8
G101: 599
G102: 599.6
G103: 599.4

Sheet 多变量
A1: 例1 | D1: 例2 | H1: 例3
A2: Test Stn | B2: Cycle Time | D2: Part | E2: Tester | F2: Time | H2: 定位稳定度 | I2: 接触时间 | J2: 测试周期
A3: 1 | B3: 146 | D3: 1 | E3: 1 | F3: 176 | H3: A | I3: 1 | J3: 118
A4: 1 | B4: 156 | D4: 2 | E4: 1 | F4: 179 | H4: A | I4: 1 | J4: 117
A5: 1 | B5: 154 | D5: 3 | E5: 1 | F5: 179 | H5: A | I5: 1 | J5: 117
A6: 1 | B6: 154 | D6: 4 | E6: 1 | F6: 178 | H6: A | I6: 1 | J6: 118
A7: 1 | B7: 163 | D7: 5 | E7: 1 | F7: 178 | H7: A | I7: 1 | J7: 117
A8: 1 | B8: 148 | D8: 6 | E8: 1 | F8: 179 | H8: A | I8: 2 | J8: 119
A9: 1 | B9: 147 | D9: 7 | E9: 1 | F9: 177 | H9: A | I9: 2 | J9: 119
A10: 1 | B10: 154 | D10: 8 | E10: 1 | F10: 179 | H10: A | I10: 2 | J10: 118
A11: 1 | B11: 155 | D11: 9 | E11: 1 | F11: 180 | H11: A | I11: 2 | J11: 119
A12: 1 | B12: 152 | D12: 10 | E12: 1 | F12: 175 | H12: A | I12: 2 | J12: 118
A13: 1 | B13: 152 | D13: 11 | E13: 1 | F13: 176 | H13: A | I13: 3 | J13: 121
A14: 1 | B14: 179 | D14: 12 | E14: 1 | F14: 180 | H14: A | I14: 3 | J14: 121
A15: 1 | B15: 146 | D15: 13 | E15: 1 | F15: 178 | H15: A | I15: 3 | J15: 121
A16: 1 | B16: 152 | D16: 14 | E16: 1 | F16: 175 | H16: A | I16: 3 | J16: 121
A17: 1 | B17: 162 | D17: 15 | E17: 1 | F17: 176 | H17: A | I17: 3 | J17: 121
A18: 1 | B18: 153 | D18: 16 | E18: 1 | F18: 176 | H18: B | I18: 1 | J18: 141
A19: 1 | B19: 157 | D19: 17 | E19: 1 | F19: 179 | H19: B | I19: 1 | J19: 136
A20: 1 | B20: 171 | D20: 18 | E20: 1 | F20: 178 | H20: B | I20: 1 | J20: 136
A21: 1 | B21: 148 | D21: 19 | E21: 1 | F21: 176 | H21: B | I21: 1 | J21: 131
A22: 1 | B22: 150 | D22: 20 | E22: 1 | F22: 175 | H22: B | I22: 1 | J22: 129
A23: 1 | B23: 162 | D23: 1 | E23: 1 | F23: 176 | H23: B | I23: 2 | J23: 153
A24: 1 | B24: 148 | D24: 2 | E24: 1 | F24: 177 | H24: B | I24: 2 | J24: 154
A25: 1 | B25: 171 | D25: 3 | E25: 1 | F25: 177 | H25: B | I25: 2 | J25: 159
A26: 1 | B26: 147 | D26: 4 | E26: 1 | F26: 179 | H26: B | I26: 2 | J26: 152
A27: 1 | B27: 149 | D27: 5 | E27: 1 | F27: 175 | H27: B | I27: 2 | J27: 148
A28: 1 | B28: 157 | D28: 6 | E28: 1 | F28: 181 | H28: B | I28: 3 | J28: 126
A29: 1 | B29: 148 | D29: 7 | E29: 1 | F29: 181 | H29: B | I29: 3 | J29: 127
A30: 1 | B30: 162 | D30: 8 | E30: 1 | F30: 175 | H30: B | I30: 3 | J30: 127
A31: 1 | B31: 175 | D31: 9 | E31: 1 | F31: 176 | H31: B | I31: 3 | J31: 125
A32: 1 | B32: 154 | D32: 10 | E32: 1 | F32: 178 | H32: B | I32: 3 | J32: 126
A33: 2 | B33: 153 | D33: 11 | E33: 1 | F33: 175 | H33: C | I33: 1 | J33: 163
A34: 2 | B34: 164 | D34: 12 | E34: 1 | F34: 178 | H34: C | I34: 1 | J34: 161
A35: 2 | B35: 167 | D35: 13 | E35: 1 | F35: 176 | H35: C | I35: 1 | J35: 158
A36: 2 | B36: 165 | D36: 14 | E36: 1 | F36: 176 | H36: C | I36: 1 | J36: 154
A37: 2 | B37: 172 | D37: 15 | E37: 1 | F37: 177 | H37: C | I37: 1 | J37: 153
A38: 2 | B38: 149 | D38: 16 | E38: 1 | F38: 176 | H38: C | I38: 2 | J38: 168
A39: 2 | B39: 149 | D39: 17 | E39: 1 | F39: 186 | H39: C | I39: 2 | J39: 164
A40: 2 | B40: 179 | D40: 18 | E40: 1 | F40: 176 | H40: C | I40: 2 | J40: 163
A41: 2 | B41: 174 | D41: 19 | E41: 1 | F41: 177 | H41: C | I41: 2 | J41: 157
A42: 2 | B42: 147 | D42: 20 | E42: 1 | F42: 178 | H42: C | I42: 2 | J42: 157
A43: 2 | B43: 154 | D43: 1 | E43: 1 | F43: 176 | H43: C | I43: 3 | J43: 135
A44: 2 | B44: 154 | D44: 2 | E44: 1 | F44: 175 | H44: C | I44: 3 | J44: 133
A45: 2 | B45: 153 | D45: 3 | E45: 1 | F45: 176 | H45: C | I45: 3 | J45: 130
A46: 2 | B46: 146 | D46: 4 | E46: 1 | F46: 175 | H46: C | I46: 3 | J46: 127
A47: 2 | B47: 150 | D47: 5 | E47: 1 | F47: 175 | H47: C | I47: 3 | J47: 128
A48: 2 | B48: 152 | D48: 6 | E48: 1 | F48: 185 | H48: D | I48: 1 | J48: 118
A49: 2 | B49: 150 | D49: 7 | E49: 1 | F49: 175 | H49: D | I49: 1 | J49: 118
A50: 2 | B50: 181 | D50: 8 | E50: 1 | F50: 176 | H50: D | I50: 1 | J50: 117
A51: 2 | B51: 147 | D51: 9 | E51: 1 | F51: 177 | H51: D | I51: 1 | J51: 118
A52: 2 | B52: 159 | D52: 10 | E52: 1 | F52: 179 | H52: D | I52: 1 | J52: 117
A53: 2 | B53: 153 | D53: 11 | E53: 1 | F53: 180 | H53: D | I53: 2 | J53: 119
A54: 2 | B54: 148 | D54: 12 | E54: 1 | F54: 179 | H54: D | I54: 2 | J54: 119
A55: 2 | B55: 149 | D55: 13 | E55: 1 | F55: 178 | H55: D | I55: 2 | J55: 119
A56: 2 | B56: 152 | D56: 14 | E56: 1 | F56: 178 | H56: D | I56: 2 | J56: 119
A57: 2 | B57: 153 | D57: 15 | E57: 1 | F57: 180 | H57: D | I57: 2 | J57: 118
A58: 2 | B58: 162 | D58: 16 | E58: 1 | F58: 178 | H58: D | I58: 3 | J58: 121
A59: 2 | B59: 152 | D59: 17 | E59: 1 | F59: 185 | H59: D | I59: 3 | J59: 121
A60: 2 | B60: 160 | D60: 18 | E60: 1 | F60: 176 | H60: D | I60: 3 | J60: 121
A61: 2 | B61: 154 | D61: 19 | E61: 1 | F61: 180 | H61: D | I61: 3 | J61: 121
A62: 2 | B62: 157 | D62: 20 | E62: 1 | F62: 179 | H62: D | I62: 3 | J62: 121
A63: 3 | B63: 164 | D63: 1 | E63: 2 | F63: 145 | H63: E | I63: 1 | J63: 118
A64: 3 | B64: 155 | D64: 2 | E64: 2 | F64: 146 | H64: E | I64: 1 | J64: 118
A65: 3 | B65: 174 | D65: 3 | E65: 2 | F65: 147 | H65: E | I65: 1 | J65: 117
A66: 3 | B66: 161 | D66: 4 | E66: 2 | F66: 147 | H66: E | I66: 1 | J66: 118
A67: 3 | B67: 167 | D67: 5 | E67: 2 | F67: 147 | H67: E | I67: 1 | J67: 117
A68: 3 | B68: 164 | D68: 6 | E68: 2 | F68: 146 | H68: E | I68: 2 | J68: 147
A69: 3 | B69: 172 | D69: 7 | E69: 2 | F69: 145 | H69: E | I69: 2 | J69: 147
A70: 3 | B70: 162 | D70: 8 | E70: 2 | F70: 146 | H70: E | I70: 2 | J70: 146
A71: 3 | B71: 153 | D71: 9 | E71: 2 | F71: 148 | H71: E | I71: 2 | J71: 143
A72: 3 | B72: 162 | D72: 10 | E72: 2 | F72: 145 | H72: E | I72: 2 | J72: 139
A73: 3 | B73: 175 | D73: 11 | E73: 2 | F73: 147 | H73: E | I73: 3 | J73: 124
A74: 3 | B74: 149 | D74: 12 | E74: 2 | F74: 145 | H74: E | I74: 3 | J74: 125
A75: 3 | B75: 164 | D75: 13 | E75: 2 | F75: 147 | H75: E | I75: 3 | J75: 124
A76: 3 | B76: 158 | D76: 14 | E76: 2 | F76: 146 | H76: E | I76: 3 | J76: 124
A77: 3 | B77: 173 | D77: 15 | E77: 2 | F77: 147 | H77: E | I77: 3 | J77: 124
A78: 3 | B78: 167 | D78: 16 | E78: 2 | F78: 145
A79: 3 | B79: 156 | D79: 17 | E79: 2 | F79: 147
A80: 3 | B80: 177 | D80: 18 | E80: 2 | F80: 147
A81: 3 | B81: 152 | D81: 19 | E81: 2 | F81: 146
A82: 3 | B82: 153 | D82: 20 | E82: 2 | F82: 146
A83: 3 | B83: 151 | D83: 1 | E83: 2 | F83: 146
A84: 3 | B84: 153 | D84: 2 | E84: 2 | F84: 147
A85: 3 | B85: 167 | D85: 3 | E85: 2 | F85: 147
A86: 3 | B86: 168 | D86: 4 | E86: 2 | F86: 147
A87: 3 | B87: 165 | D87: 5 | E87: 2 | F87: 145
A88: 3 | B88: 156 | D88: 6 | E88: 2 | F88: 146
A89: 3 | B89: 165 | D89: 7 | E89: 2 | F89: 146
A90: 3 | B90: 158 | D90: 8 | E90: 2 | F90: 149
A91: 3 | B91: 157 | D91: 9 | E91: 2 | F91: 147
A92: 3 | B92: 167 | D92: 10 | E92: 2 | F92: 147
A93: 4 | B93: 158 | D93: 11 | E93: 2 | F93: 146
A94: 4 | B94: 178 | D94: 12 | E94: 2 | F94: 145
A95: 4 | B95: 160 | D95: 13 | E95: 2 | F95: 147
A96: 4 | B96: 167 | D96: 14 | E96: 2 | F96: 146
A97: 4 | B97: 152 | D97: 15 | E97: 2 | F97: 147
A98: 4 | B98: 148 | D98: 16 | E98: 2 | F98: 146
A99: 4 | B99: 144 | D99: 17 | E99: 2 | F99: 145
A100: 4 | B100: 162 | D100: 18 | E100: 2 | F100: 146
A101: 4 | B101: 154 | D101: 19 | E101: 2 | F101: 148
A102: 4 | B102: 149 | D102: 20 | E102: 2 | F102: 146
A103: 4 | B103: 148 | D103: 1 | E103: 2 | F103: 145
A104: 4 | B104: 153 | D104: 2 | E104: 2 | F104: 146
A105: 4 | B105: 149 | D105: 3 | E105: 2 | F105: 145
A106: 4 | B106: 147 | D106: 4 | E106: 2 | F106: 147
A107: 4 | B107: 166 | D107: 5 | E107: 2 | F107: 145
A108: 4 | B108: 145 | D108: 6 | E108: 2 | F108: 146
A109: 4 | B109: 152 | D109: 7 | E109: 2 | F109: 148
A110: 4 | B110: 141 | D110: 8 | E110: 2 | F110: 146
A111: 4 | B111: 169 | D111: 9 | E111: 2 | F111: 147
A112: 4 | B112: 171 | D112: 10 | E112: 2 | F112: 145
A113: 4 | B113: 158 | D113: 11 | E113: 2 | F113: 145
A114: 4 | B114: 155 | D114: 12 | E114: 2 | F114: 145
A115: 4 | B115: 151 | D115: 13 | E115: 2 | F115: 146
A116: 4 | B116: 149 | D116: 14 | E116: 2 | F116: 146
A117: 4 | B117: 147 | D117: 15 | E117: 2 | F117: 146
A118: 4 | B118: 155 | D118: 16 | E118: 2 | F118: 145
A119: 4 | B119: 161 | D119: 17 | E119: 2 | F119: 146
A120: 4 | B120: 165 | D120: 18 | E120: 2 | F120: 146
A121: 4 | B121: 155 | D121: 19 | E121: 2 | F121: 146
A122: 4 | B122: 169 | D122: 20 | E122: 2 | F122: 146
A123: 5 | B123: 163
A124: 5 | B124: 163
A125: 5 | B125: 170
A126: 5 | B126: 161
A127: 5 | B127: 168
A128: 5 | B128: 158
A129: 5 | B129: 184
A130: 5 | B130: 169
A131: 5 | B131: 162
A132: 5 | B132: 168
A133: 5 | B133: 159
A134: 5 | B134: 155
A135: 5 | B135: 169
A136: 5 | B136: 172
A137: 5 | B137: 159
A138: 5 | B138: 155
A139: 5 | B139: 155
A140: 5 | B140: 174
A141: 5 | B141: 157
A142: 5 | B142: 175
A143: 5 | B143: 159
A144: 5 | B144: 182
A145: 5 | B145: 163
A146: 5 | B146: 158
A147: 5 | B147: 162
A148: 5 | B148: 163
A149: 5 | B149: 164
A150: 5 | B150: 187
A151: 5 | B151: 173
A152: 5 | B152: 164
A153: 6 | B153: 148
A154: 6 | B154: 145
A155: 6 | B155: 142
A156: 6 | B156: 143
A157: 6 | B157: 145
A158: 6 | B158: 138
A159: 6 | B159: 136
A160: 6 | B160: 143
A161: 6 | B161: 143
A162: 6 | B162: 137
A163: 6 | B163: 137
A164: 6 | B164: 141
A165: 6 | B165: 137
A166: 6 | B166: 141
A167: 6 | B167: 142
A168: 6 | B168: 149
A169: 6 | B169: 140
A170: 6 | B170: 140
A171: 6 | B171: 137
A172: 6 | B172: 140
A173: 6 | B173: 146
A174: 6 | B174: 143
A175: 6 | B175: 136
A176: 6 | B176: 141
A177: 6 | B177: 141
A178: 6 | B178: 143
A179: 6 | B179: 147
A180: 6 | B180: 147
A181: 6 | B181: 143
A182: 6 | B182: 154

Sheet 离散（HT）
C3: 供应商A | D3: 供应商B | G3: A | H3: B | I3: C | J3: D | K3: 合计 | M3: 产线 | N3: 短路 | O3: 断线 | P3: DCR | Q3: 高频 | R3: 合计
B4: 不良数 | C4: 280 | D4: 15 | F4: 不良数 | G4: 291 | H4: 315 | I4: 76 | J4: 21 | K4: 703 | M4: A | N4: 30 | O4: 41 | P4: 92 | Q4: 23 | R4: 186
B5: 检验数 | C5: 38604 | D5: 2780 | F5: 良品数 | G5: 15309 | H5: 20685 | I5: 5524 | J5: 879 | K5: 42397 | M5: B | N5: 51 | O5: 62 | P5: 69 | Q5: 15 | R5: 197
B6: 不良率 | C6: 0.73 | D6: 0.54 | F6: 检查数 | G6: 15600 | H6: 21000 | I6: 5600 | J6: 900 | K6: 43100 | M6: C | N6: 64 | O6: 35 | P6: 38 | Q6: 44 | R6: 181
M7: 合计 | N7: 145 | O7: 138 | P7: 199 | Q7: 82 | R7: 564

Sheet 连续（HT）
A1: 置信区间 | C1: 方差检验 | AP1: 成对T
A2: 1 sample t | AD2: 1 | AG2: 3 | AJ2: 2 | AM2: resistenc (ohm)
A3: Height | C3: 产品直径 | D3: 线脚长度 | E3: A机台 | F3: B机台 | G3: 设备A | H3: 设备B | I3: 设备C | J3: 设备D | K3: 零件长度抽取数据：35个 | R3: 产品重量数据：20个，目标500 | X3: PCB拉拔力A | Y3: PCB拉拔力B | Z3: 样品 | AA3: 改善前 | AB3: 改善后 | AC3: 差值 | AD3: CNC(buy) | AE3: CNC Exsiting | AG3: R-Before | AH3: R-after | AJ3: CNC1 | AK3: CNC2 | AM3: before | AN3: after | AP3: caliper 1 | AQ3: caliper 2 | AR3: difference
A4: 5.394 | C4: 14.6 | D4: 3 | E4: 25.53 | F4: 25.5 | G4: 105 | H4: 98 | I4: 115 | J4: 104 | K4: 5.49 | L4: 5.51 | M4: 5.47 | N4: 5.52 | O4: 5.48 | P4: 5.51 | Q4: 5.5 | R4: 499 | S4: 501 | T4: 500 | U4: 502 | X4: 5.65 | Y4: 5.99 | Z4: 1 | AA4: 25.6 | AB4: 28.7 | AC4: =AA4-AB4 -> -3.1 | AD4: 15.3171 | AE4: 15.3006 | AG4: 295.399 | AH4: 301.065 | AJ4: 20.1314 | AK4: 20.261 | AM4: 8.79 | AN4: 8.79 | AP4: 0.265 | AQ4: 0.264 | AR4: =AP4-AQ4 -> 0.001
A5: 5.394 | C5: 14.8 | D5: 2.9 | E5: 25.52 | F5: 25.55 | G5: 108 | H5: 112 | I5: 109 | J5: 103 | K5: 5.48 | L5: 5.53 | M5: 5.49 | N5: 5.5 | O5: 5.49 | P5: 5.5 | Q5: 5.51 | R5: 498 | S5: 500 | T5: 501 | U5: 501 | X5: 5.89 | Y5: 5.78 | Z5: 2 | AA5: 20.8 | AB5: 30.6 | AC5: =AA5-AB5 -> -9.8 | AD5: 15.3469 | AE5: 15.3529 | AG5: 303.622 | AH5: 307.656 | AJ5: 19.6276 | AK5: 20.129 | AM5: 8.76 | AN5: 8.78 | AP5: 0.265 | AQ5: 0.265 | AR5: =AP5-AQ5 -> 0
A6: 5.393 | C6: 15.4 | D6: 3 | E6: 25.52 | F6: 25.56 | G6: 104 | H6: 117 | I6: 108 | J6: 102 | K6: 5.49 | L6: 5.52 | M6: 5.54 | N6: 5.51 | O6: 5.49 | P6: 5.52 | Q6: 5.51 | R6: 497 | S6: 502 | T6: 499 | U6: 499 | X6: 4.37 | Y6: 5.26 | Z6: 3 | AA6: 19.4 | AB6: 25.5 | AC6: =AA6-AB6 -> -6.1 | AD6: 15.3272 | AE6: 15.2961 | AG6: 310.789 | AH6: 303.983 | AJ6: 19.997 | AK6: 19.8902 | AM6: 8.64 | AN6: 8.68 | AP6: 0.266 | AQ6: 0.264 | AR6: =AP6-AQ6 -> 0.002
A7: 5.394 | C7: 15.2 | D7: 2.98 | E7: 25.5 | F7: 25.49 | G7: 102 | H7: 109 | I7: 107 | J7: 97 | K7: 5.5 | L7: 5.49 | M7: 5.5 | N7: 5.51 | O7: 5.51 | P7: 5.53 | Q7: 5.5 | R7: 498 | S7: 499 | T7: 498 | U7: 500 | X7: 4.28 | Y7: 4.99 | Z7: 4 | AA7: 26.2 | AB7: 24.8 | AC7: =AA7-AB7 -> 1.4 | AD7: 15.3209 | AE7: 15.3127 | AG7: 302.233 | AH7: 304.903 | AJ7: 19.9867 | AK7: 20.1192 | AM7: 8.75 | AN7: 8.76 | AP7: 0.267 | AQ7: 0.266 | AR7: =AP7-AQ7 -> 0.001
A8: 5.394 | C8: 15.3 | D8: 3.03 | E8: 25.52 | F8: 25.48 | G8: 103 | H8: 112 | I8: 105 | J8: 96 | K8: 5.51 | L8: 5.48 | M8: 5.51 | N8: 5.5 | O8: 5.52 | P8: 5.53 | Q8: 5.5 | R8: 499 | S8: 499 | T8: 502 | U8: 501 | X8: 5.12 | Y8: 4.88 | Z8: 5 | AA8: 24.7 | AB8: 19.5 | AC8: =AA8-AB8 -> 5.2 | AD8: 15.2963 | AE8: 15.3741 | AG8: 306.169 | AH8: 295.289 | AJ8: 20.2767 | AK8: 19.8746 | AM8: 8.56 | AN8: 8.58 | AP8: 0.267 | AQ8: 0.267 | AR8: =AP8-AQ8 -> 0
A9: 5.395 | C9: 14.9 | D9: 2.95 | E9: 25.51 | F9: 25.53 | G9: 106 | H9: 114 | I9: 104 | J9: 108 | Z9: 6 | AA9: 18.1 | AB9: 25.9 | AC9: =AA9-AB9 -> -7.8 | AD9: 15.3044 | AE9: 15.3077 | AG9: 298.026 | AH9: 295.001 | AJ9: 20.3764 | AK9: 19.8422 | AM9: 8.94 | AN9: 8.93 | AP9: 0.265 | AQ9: 0.268 | AR9: =AP9-AQ9 -> -0.003
A10: 5.396 | C10: 15.2 | D10: 2.94 | E10: 25.54 | F10: 25.52 | G10: 108 | H10: 105 | I10: 105 | J10: 107 | Z10: 7 | AA10: 22.9 | AB10: 27.8 | AC10: =AA10-AB10 -> -4.9 | AD10: 15.3129 | AE10: 15.3853 | AG10: 291.572 | AH10: 304.177 | AJ10: 19.7204 | AK10: 19.4768 | AM10: 8.88 | AN10: 8.86 | AP10: 0.267 | AQ10: 0.264 | AR10: =AP10-AQ10 -> 0.003
A11: 5.397 | C11: 15.6 | D11: 3.08 | E11: 25.55 | F11: 25.54 | G11: 110 | H11: 108 | I11: 95 | J11: 105 | AD11: 15.3095 | AE11: 15.3791 | AG11: 298.501 | AH11: 302.239 | AJ11: 20.3185 | AK11: 19.8766 | AM11: 8.72 | AN11: 8.77 | AP11: 0.267 | AQ11: 0.265 | AR11: =AP11-AQ11 -> 0.002
A12: 5.395 | C12: 13.9 | D12: 2.97 | E12: 25.5 | F12: 25.5 | G12: 109 | H12: 109 | I12: 106 | J12: 108 | AD12: 15.337 | AE12: 15.2806 | AG12: 302.957 | AH12: 301.848 | AJ12: 19.8128 | AK12: 20.2588 | AM12: 8.46 | AN12: 8.5 | AP12: 0.265 | AQ12: 0.265 | AR12: =AP12-AQ12 -> 0
A13: 5.395 | D13: 2.94 | E13: 25.52 | F13: 25.47 | G13: 102 | H13: 107 | I13: 108 | J13: 108 | AD13: 15.3481 | AE13: 15.3498 | AG13: 299.675 | AH13: 299.266 | AJ13: 19.9169 | AK13: 20.1568 | AM13: 8.44 | AN13: 8.43 | AP13: 0.268 | AQ13: 0.267 | AR13: =AP13-AQ13 -> 0.001
G14: 104 | H14: 105 | I14: 107 | J14: 104 | AD14: 15.2837 | AE14: 15.3316 | AG14: 292.165 | AH14: 302.37 | AP14: 0.268 | AQ14: 0.268 | AR14: =AP14-AQ14 -> 0
G15: 106 | H15: 104 | I15: 105 | J15: 105 | AD15: 15.3146 | AE15: 15.3155 | AG15: 298.855 | AH15: 302.594 | AP15: 0.265 | AQ15: 0.269 | AR15: =AP15-AQ15 -> -0.004
G16: 105 | H16: 108 | I16: 103 | J16: 107 | AD16: 15.2994 | AE16: 15.2866 | AG16: 296.138 | AH16: 302.561
G17: 111 | H17: 107 | I17: 103 | J17: 105 | AD17: 15.3021 | AE17: 15.3733 | AG17: 299.422 | AH17: 305.439
G18: 104 | H18: 100 | I18: 105 | J18: 100 | AD18: 15.3318 | AE18: 15.3638 | AG18: 302.946 | AH18: 305.537
G19: 103 | H19: 99 | I19: 105 | J19: 98 | AD19: 15.3269 | AE19: 15.3255 | AG19: 298.496 | AH19: 294.43
G20: 105 | H20: 98 | I20: 106 | J20: 107 | AD20: 15.3079 | AE20: 15.3345 | AG20: 297.273 | AH20: 301.663 | AR20: =CHIDIST(19.178,6) -> 0.003873345026
G21: 106 | H21: 101 | I21: 107 | J21: 110 | AD21: 15.3382 | AE21: 15.3128 | AG21: 302.932 | AH21: 292.255
G22: 107 | H22: 103 | I22: 93 | J22: 112 | AD22: 15.3061 | AE22: 15.3335 | AG22: 288.307 | AH22: 291.465
G23: 105 | H23: 117 | I23: 105 | J23: 113 | AD23: 15.286 | AE23: 15.3665 | AG23: 299.106 | AH23: 301.622
A42: LCI
A46: F test

Sheet 方差分析 (2)
B2: 不同锡膏对拉拔力的影响：
B3: NO. | C3: A | D3: B | E3: C
B4: 1 | C4: 5.67 | D4: 4.88 | E4: 4.89
B5: 2 | C5: 5.34 | D5: 5.36 | E5: 5.21
B6: 3 | C6: 4.98 | D6: 4.99 | E6: 5.36
B7: 4 | C7: 5.56 | D7: 5.75 | E7: 5.89
B8: 5 | C8: 5.8 | D8: 6.21 | E8: 6.11
B9: 6 | C9: 6.71 | D9: 6.07 | E9: 5.29

Sheet 变异源分析
A1: 嵌套数据 | J1: 交叉嵌套数据
A3: 工人 | B3: 螺钉 | C3: 读数 | D3: 直径 | F3: 来源 | G3: 估计值 | J3: 工人 | K3: 车床 | L3: 轴棒 | M3: 读数 | N3: 直径 | P3: 来源 | Q3: 方差分量
A4: A | B4: 1 | C4: 1 | D4: 8.2 | F4: 工人 | G4: 0.06885 | J4: A | K4: 1 | L4: 1 | M4: 1 | N4: 23.1 | P4: 工人 | Q4: 0.02789
A5: A | B5: 1 | C5: 2 | D5: 8.4 | F5: 螺钉(工人) | G5: 0.00167 | J5: A | K5: 1 | L5: 1 | M5: 2 | N5: 23.3 | P5: 车床 | Q5: 0.33851
A6: A | B6: 2 | C6: 1 | D6: 8.6 | F6: 误差 | G6: 0.01208 | J6: A | K6: 1 | L6: 2 | M6: 1 | N6: 23 | P6: 工人*车床 | Q6: 0.00146
A7: A | B7: 2 | C7: 2 | D7: 8.4 | J7: A | K7: 1 | L7: 2 | M7: 2 | N7: 23.4 | P7: 轴棒(工人_车床) | Q7: 0.0075
A8: A | B8: 3 | C8: 1 | D8: 8.4 | J8: A | K8: 1 | L8: 3 | M8: 1 | N8: 23.1 | P8: 误差 | Q8: 0.01528
A9: A | B9: 3 | C9: 2 | D9: 8.5 | J9: A | K9: 1 | L9: 3 | M9: 2 | N9: 23.3
A10: A | B10: 4 | C10: 1 | D10: 8.2 | J10: A | K10: 2 | L10: 1 | M10: 1 | N10: 24.6
A11: A | B11: 4 | C11: 2 | D11: 8.4 | J11: A | K11: 2 | L11: 1 | M11: 2 | N11: 24.5
A12: B | B12: 1 | C12: 1 | D12: 8.8 | J12: A | K12: 2 | L12: 2 | M12: 1 | N12: 24.7
A13: B | B13: 1 | C13: 2 | D13: 8.9 | J13: A | K13: 2 | L13: 2 | M13: 2 | N13: 24.8
A14: B | B14: 2 | C14: 1 | D14: 8.9 | J14: A | K14: 2 | L14: 3 | M14: 1 | N14: 24.5
A15: B | B15: 2 | C15: 2 | D15: 8.6 | J15: A | K15: 2 | L15: 3 | M15: 2 | N15: 24.6
A16: B | B16: 3 | C16: 1 | D16: 8.7 | J16: A | K16: 3 | L16: 1 | M16: 1 | N16: 23.6
A17: B | B17: 3 | C17: 2 | D17: 8.6 | J17: A | K17: 3 | L17: 1 | M17: 2 | N17: 23.8
A18: B | B18: 4 | C18: 1 | D18: 8.6 | J18: A | K18: 3 | L18: 2 | M18: 1 | N18: 23.9
A19: B | B19: 4 | C19: 2 | D19: 8.7 | J19: A | K19: 3 | L19: 2 | M19: 2 | N19: 23.8
A20: C | B20: 1 | C20: 1 | D20: 8.1 | J20: A | K20: 3 | L20: 3 | M20: 1 | N20: 23.4
A21: C | B21: 1 | C21: 2 | D21: 8.2 | J21: A | K21: 3 | L21: 3 | M21: 2 | N21: 23.5
A22: C | B22: 2 | C22: 1 | D22: 8.3 | J22: A | K22: 4 | L22: 1 | M22: 1 | N22: 24.1
A23: C | B23: 2 | C23: 2 | D23: 8.2 | J23: A | K23: 4 | L23: 1 | M23: 2 | N23: 24.3
A24: C | B24: 3 | C24: 1 | D24: 8.1 | J24: A | K24: 4 | L24: 2 | M24: 1 | N24: 24.2
A25: C | B25: 3 | C25: 2 | D25: 8.2 | J25: A | K25: 4 | L25: 2 | M25: 2 | N25: 24.3
A26: C | B26: 4 | C26: 1 | D26: 8.2 | J26: A | K26: 4 | L26: 3 | M26: 1 | N26: 24.1
A27: C | B27: 4 | C27: 2 | D27: 8.3 | J27: A | K27: 4 | L27: 3 | M27: 2 | N27: 24.2
J28: B | K28: 1 | L28: 1 | M28: 1 | N28: 23.7
J29: B | K29: 1 | L29: 1 | M29: 2 | N29: 23.6
J30: B | K30: 1 | L30: 2 | M30: 1 | N30: 23.6
J31: B | K31: 1 | L31: 2 | M31: 2 | N31: 23.5
J32: B | K32: 1 | L32: 3 | M32: 1 | N32: 23.8
J33: B | K33: 1 | L33: 3 | M33: 2 | N33: 23.7
J34: B | K34: 2 | L34: 1 | M34: 1 | N34: 24.9
J35: B | K35: 2 | L35: 1 | M35: 2 | N35: 24.8
J36: B | K36: 2 | L36: 2 | M36: 1 | N36: 24.9
J37: B | K37: 2 | L37: 2 | M37: 2 | N37: 24.7
J38: B | K38: 2 | L38: 3 | M38: 1 | N38: 24.9
J39: B | K39: 2 | L39: 3 | M39: 2 | N39: 24.8
J40: B | K40: 3 | L40: 1 | M40: 1 | N40: 23.9
J41: B | K41: 3 | L41: 1 | M41: 2 | N41: 24
J42: B | K42: 3 | L42: 2 | M42: 1 | N42: 23.5
J43: B | K43: 3 | L43: 2 | M43: 2 | N43: 23.9
J44: B | K44: 3 | L44: 3 | M44: 1 | N44: 23.8
J45: B | K45: 3 | L45: 3 | M45: 2 | N45: 23.6
J46: B | K46: 4 | L46: 1 | M46: 1 | N46: 24.5
J47: B | K47: 4 | L47: 1 | M47: 2 | N47: 24.4
J48: B | K48: 4 | L48: 2 | M48: 1 | N48: 24
J49: B | K49: 4 | L49: 2 | M49: 2 | N49: 24.3
J50: B | K50: 4 | L50: 3 | M50: 1 | N50: 24.6
J51: B | K51: 4 | L51: 3 | M51: 2 | N51: 24.7
J52: C | K52: 1 | L52: 1 | M52: 1 | N52: 23.1
J53: C | K53: 1 | L53: 1 | M53: 2 | N53: 23.2
J54: C | K54: 1 | L54: 2 | M54: 1 | N54: 23.3
J55: C | K55: 1 | L55: 2 | M55: 2 | N55: 23.1
J56: C | K56: 1 | L56: 3 | M56: 1 | N56: 23.4
J57: C | K57: 1 | L57: 3 | M57: 2 | N57: 23.2
J58: C | K58: 2 | L58: 1 | M58: 1 | N58: 24.6
J59: C | K59: 2 | L59: 1 | M59: 2 | N59: 24.5
J60: C | K60: 2 | L60: 2 | M60: 1 | N60: 24.4
J61: C | K61: 2 | L61: 2 | M61: 2 | N61: 24.5
J62: C | K62: 2 | L62: 3 | M62: 1 | N62: 24.3
J63: C | K63: 2 | L63: 3 | M63: 2 | N63: 24.5
J64: C | K64: 3 | L64: 1 | M64: 1 | N64: 23.4
J65: C | K65: 3 | L65: 1 | M65: 2 | N65: 23.6
J66: C | K66: 3 | L66: 2 | M66: 1 | N66: 23.4
J67: C | K67: 3 | L67: 2 | M67: 2 | N67: 23.5
J68: C | K68: 3 | L68: 3 | M68: 1 | N68: 23.6
J69: C | K69: 3 | L69: 3 | M69: 2 | N69: 23.4
J70: C | K70: 4 | L70: 1 | M70: 1 | N70: 24
J71: C | K71: 4 | L71: 1 | M71: 2 | N71: 24.1
J72: C | K72: 4 | L72: 2 | M72: 1 | N72: 24.2
J73: C | K73: 4 | L73: 2 | M73: 2 | N73: 24.3
J74: C | K74: 4 | L74: 3 | M74: 1 | N74: 24.2
J75: C | K75: 4 | L75: 3 | M75: 2 | N75: 24.4

Sheet 方差分析
A1: 浮游动物 | B1: 补充 | C1: 湖
A2: 34 | B2: 1 | C2: 玫瑰花
A3: 43 | B3: 1 | C3: 玫瑰花
A4: 57 | B4: 1 | C4: 可移动的高秤
A5: 40 | B5: 1 | C5: 可移动的高秤
A6: 85 | B6: 2 | C6: 玫瑰花
A7: 68 | B7: 2 | C7: 玫瑰花
A8: 67 | B8: 2 | C8: 可移动的高秤
A9: 53 | B9: 2 | C9: 可移动的高秤
A10: 41 | B10: 3 | C10: 玫瑰花
A11: 24 | B11: 3 | C11: 玫瑰花
A12: 42 | B12: 3 | C12: 可移动的高秤
A13: 52 | B13: 3 | C13: 可移动的高秤

Sheet 回归
A1: 相关性分析
D2: 料盘 | E2: 线脚 | G2: 体重 | H2: 薪资 | J2: X:烤前 | K2: Y:烤后 | M2: 焊接时间(S)对焊接强度(拉拔力)的影响
A3: 身高 (英寸) | B3: 体重 (磅) | D3: 2.2 | E3: 2.4 | G3: 90 | H3: 1934 | J3: 94.45 | K3: 94.38 | N3: 5 | O3: 5.5 | P3: 6 | Q3: 6.5
A4: 68 | B4: 135 | D4: 2.3 | E4: 2.6 | G4: 95 | H4: 1966 | J4: 87.945 | K4: 89.463 | M4: X1 | N4: 86.5 | O4: 94.3 | P4: 89.6 | Q4: 86.4
A5: 70 | B5: 140 | D5: 2.4 | E5: 2.7 | G5: 100 | H5: 1952 | J5: 87.324 | K5: 88.668 | M5: X2 | N5: 92 | O5: 93.3 | P5: 94.2 | Q5: 87.9
A6: 71 | B6: 165 | D6: 2.5 | E6: 2.6 | G6: 105 | H6: 1848 | J6: 88.501 | K6: 89.677 | M6: X3 | N6: 85.2 | O6: 92 | P6: 90.8 | Q6: 90.6
A7: 69 | B7: 155 | D7: 2.6 | E7: 2.8 | G7: 110 | H7: 2141 | J7: 90.838 | K7: 91.764 | M7: X4 | N7: 87.9 | O7: 89.8 | P7: 92.7 | Q7: 84.5
A8: 71 | B8: 175 | D8: 2.7 | E8: 2.8 | G8: 115 | H8: 2013 | J8: 94.564 | K8: 95.472 | M8: X5 | N8: 86 | O8: 92.5 | P8: 90.9 | Q8: 88.4
A9: 72 | B9: 170 | D9: 2.8 | E9: 3.0 | G9: 120 | H9: 1948 | J9: 94.804 | K9: 95.417
A10: 74 | B10: 190 | D10: 2.9 | E10: 3.1 | G10: 125 | H10: 1882 | J10: 87.781 | K10: 89.27
A11: 67 | B11: 130 | D11: 3.0 | E11: 3.2 | G11: 130 | H11: 2107 | J11: 94.123 | K11: 95.96
A12: 69 | B12: 145 | D12: 3.1 | E12: 3.4 | G12: 135 | H12: 2062 | J12: 93.131 | K12: 94.561
A13: 70 | B13: 158 | D13: 3.2 | E13: 3.4 | G13: 140 | H13: 1692 | J13: 91.854 | K13: 92.79
A14: 68 | B14: 142 | D14: 3.3 | E14: 3.5 | G14: 145 | H14: 2041 | J14: 93.129 | K14: 94.45
A15: 72 | B15: 180 | D15: 3.4 | E15: 3.6 | G15: 150 | H15: 2001 | J15: 89.462 | K15: 90.548
D16: 3.5 | E16: 3.7 | G16: 155 | H16: 1743 | J16: 93.797 | K16: 94.613
D17: 3.6 | E17: 3.8 | G17: 280 | H17: 20000 | J17: 93.998 | K17: 94.935
D18: 3.7 | E18: 4.2 | J18: 90.699 | K18: 92.297
D19: 3.8 | E19: 4.0 | J19: 89.954 | K19: 89.904
D20: 3.9 | E20: 4.1 | J20: 90.468 | K20: 91.519
D21: 4.0 | E21: 4.2 | J21: 89.892 | K21: 90.101
D22: 4.1 | E22: 4.3 | J22: 93.103 | K22: 94.163
D23: 4.2 | E23: 4.4 | J23: 88.038 | K23: 89.245
D24: 4.3 | E24: 4.2 | J24: 89.575 | K24: 91.222
D25: 4.4 | E25: 4.6 | J25: 89.357 | K25: 90.287
D26: 4.5 | E26: 4.7 | J26: 92.6 | K26: 91.919
D27: 4.6 | E27: 4.9 | J27: 93.505 | K27: 93.105
D28: 4.7 | E28: 4.9 | J28: 93.884 | K28: 93.994
D29: 4.8 | E29: 5.2 | J29: 87.642 | K29: 88.002
D30: 4.9 | E30: 5.1 | J30: 94.501 | K30: 94.498
D31: 5.0 | E31: 5.3 | J31: 90.277 | K31: 91.533
D32: 5.1 | E32: 5.3 | J32: 90.73 | K32: 90.354
D33: 5.2 | E33: 5.4

Sheet 回归拓展
A1: 身高体重 | J1: 多元回归：水泥散热 | P1: 多元回归 ：氨损失量 | W1: 多元回归：原木体积
A2: 高度 | B2: 体重 | F2: 速度 | G2: 挥发量 | J2: x1 | K2: x2 | L2: x3 | M2: x4 | N2: y | P2: 编号 | Q2: 常数 | R2: 气流 | S2: 水温 | T2: 酸浓度 | U2: 氨损失量 | W2: C | X2: H | Y2: V | Z2: CC | AA2: CC0
A3: 1.55 | B3: 46 | F3: 20 | G3: 0.18 | J3: 7 | K3: 26 | L3: 6 | M3: 60 | N3: 78.5 | P3: 1 | Q3: 1 | R3: 80 | S3: 11.89 | T3: 85 | U3: 42 | W3: 2.15 | X3: 7.88 | Y3: 4.343 | Z3: 4.63744 | AA3: 0.07479
A4: 1.6 | B4: 53 | F4: 60 | G4: 0.37 | J4: 1 | K4: 29 | L4: 15 | M4: 52 | N4: 74.3 | P4: 2 | Q4: 1 | R4: 80 | S4: 11.7 | T4: 88 | U4: 35 | W4: 1.68 | X4: 6.01 | Y4: 2.085 | Z4: 2.8174 | AA4: 0.0406
A5: 1.65 | B5: 61 | F5: 100 | G5: 0.35 | J5: 11 | K5: 56 | L5: 8 | M5: 20 | N5: 104.3 | P5: 3 | Q5: 1 | R5: 75 | S5: 9.2 | T5: 90 | U5: 34 | W5: 1.37 | X5: 8.97 | Y5: 2.007 | Z5: 1.86364 | AA5: 0.26507
A6: 1.7 | B6: 67 | F6: 140 | G6: 0.78 | J6: 11 | K6: 31 | L6: 8 | M6: 47 | N6: 87.6 | P6: 4 | Q6: 1 | R6: 62 | S6: 8.5 | T6: 87 | U6: 22 | W6: 1.88 | X6: 8.18 | Y6: 3.458 | Z6: 3.55215 | AA6: 2e-05
A7: 1.68 | B7: 66 | F7: 180 | G7: 0.56 | J7: 7 | K7: 52 | L7: 6 | M7: 33 | N7: 95.9 | P7: 5 | Q7: 1 | R7: 62 | S7: 6.9 | T7: 87 | U7: 18 | W7: 1.79 | X7: 5.23 | Y7: 2.157 | Z7: 3.19396 | AA7: 0.00862
A8: 1.75 | B8: 68 | F8: 220 | G8: 0.75 | J8: 11 | K8: 55 | L8: 9 | M8: 22 | N8: 109.2 | P8: 6 | Q8: 1 | R8: 62 | S8: 7.9 | T8: 87 | U8: 18 | W8: 1.53 | X8: 10.06 | Y8: 2.853 | Z8: 2.3374 | AA8: 0.1233
A9: 1.8 | B9: 84 | F9: 260 | G9: 1.18 | J9: 3 | K9: 71 | L9: 17 | M9: 6 | N9: 102.7 | P9: 7 | Q9: 1 | R9: 62 | S9: 8.6 | T9: 93 | U9: 19 | W9: 1.7 | X9: 8.21 | Y9: 3 | Z9: 2.88218 | AA9: 0.03323
A10: 1.72 | B10: 67 | F10: 300 | G10: 1.36 | J10: 1 | K10: 31 | L10: 22 | M10: 44 | N10: 72.5 | P10: 8 | Q10: 1 | R10: 62 | S10: 8.5 | T10: 93 | U10: 20 | W10: 2.7 | X10: 7.36 | Y10: 6.183 | Z10: 7.28821 | AA10: 0.67186
A11: 1.77 | B11: 75 | F11: 340 | G11: 1.17 | J11: 2 | K11: 54 | L11: 18 | M11: 22 | N11: 93.1 | P11: 9 | Q11: 1 | R11: 58 | S11: 7.4 | T11: 87 | U11: 15 | W11: 0.83 | X11: 4.63 | Y11: 0.226 | Z11: 0.6867 | AA11: 1.10529
A12: 1.65 | B12: 70 | F12: 380 | G12: 1.65 | J12: 21 | K12: 47 | L12: 4 | M12: 26 | N12: 115.9 | P12: 10 | Q12: 1 | R12: 58 | S12: 2.6 | T12: 80 | U12: 14 | W12: 1.77 | X12: 5.98 | Y12: 2.192 | Z12: 3.1303 | AA12: 0.01226
A13: 1.71 | B13: 76 | J13: 1 | K13: 40 | L13: 23 | M13: 34 | N13: 83.8 | P13: 11 | Q13: 1 | R13: 58 | S13: 2.5 | T13: 89 | U13: 14 | W13: 2.23 | X13: 8.22 | Y13: 4.776 | Z13: 4.97585 | AA13: 0.12296
A14: 1.78 | B14: 77 | J14: 11 | K14: 66 | L14: 9 | M14: 12 | N14: 113.3 | P14: 12 | Q14: 1 | R14: 58 | S14: 1.9 | T14: 88 | U14: 13 | W14: 1.07 | X14: 7.51 | Y14: 0.947 | Z14: 1.14181 | AA14: 0.65844
A15: 1.63 | B15: 56 | J15: 10 | K15: 68 | L15: 8 | M15: 12 | N15: 109.4 | P15: 13 | Q15: 1 | R15: 58 | S15: 2.7 | T15: 82 | U15: 11 | W15: 1.88 | X15: 8.71 | Y15: 3.623 | Z15: 3.54568 | AA15: 1e-05
A16: 1.57 | B16: 55 | P16: 14 | Q16: 1 | R16: 58 | S16: 3.6 | T16: 93 | U16: 12 | W16: 1.83 | X16: 6.86 | Y16: 2.812 | Z16: 3.34723 | AA16: 0.00255
A17: 1.72 | B17: 73 | P17: 15 | Q17: 1 | R17: 50 | S17: 2.3 | T17: 89 | U17: 6 | W17: 2.47 | X17: 6.24 | Y17: 4.636 | Z17: 6.08941 | AA17: 0.34536
P18: 16 | Q18: 1 | R18: 50 | S18: 2.8 | T18: 86 | U18: 7 | W18: 2.94 | X18: 7.23 | Y18: 7.42 | Z18: 8.64001 | AA18: 1.1223
P19: 17 | Q19: 1 | R19: 50 | S19: 3.6 | T19: 72 | U19: 9 | W19: 2.6 | X19: 5.62 | Y19: 5.515 | Z19: 6.74668 | AA19: 0.51472
P20: 18 | Q20: 1 | R20: 50 | S20: 3.6 | T20: 79 | U20: 8 | W20: 1.55 | X20: 7.88 | Y20: 2.25 | Z20: 2.39285 | AA20: 0.11097
P21: 19 | Q21: 1 | R21: 50 | S21: 4.9 | T21: 80 | U21: 9 | W21: 1.03 | X21: 3.58 | Y21: 0.247 | Z21: 1.05821 | AA21: 0.72473
P22: 20 | Q22: 1 | R22: 56 | S22: 4.4 | T22: 82 | U22: 15 | W22: 2.08 | X22: 5.57 | Y22: 2.988 | Z22: 4.32873 | AA22: 0.04022
P23: 21 | Q23: 1 | R23: 70 | S23: 5.1 | T23: 91 | U23: 20 | W23: 2.51 | X23: 8.43 | Y23: 5.834 | Z23: 6.30938 | AA23: 0.39923
W24: 1.37 | X24: 8.04 | Y24: 1.752 | Z24: 1.87101 | AA24: 0.2623
W25: 0.84 | X25: 6.26 | Y25: 0.542 | Z25: 0.69757 | AA25: 1.09159
W26: 2.1 | X26: 5.63 | Y26: 2.96 | Z26: 4.3917 | AA26: 0.0465
W27: 2.52 | X27: 8.27 | Y27: 6.052 | Z27: 6.34701 | AA27: 0.40874
M28: =4-1.8857 -> 2.1143 | W28: 2.96 | X28: 9.59 | Y28: 8.101 | Z28: 8.75923 | AA28: 1.16553
M29: =M28*M28 -> 4.47026449 | W29: 1.72 | X29: 7.26 | Y29: 2.582 | Z29: 2.96792 | AA29: 0.02472
W30: 1.48 | X30: 8.67 | Y30: 2.368 | Z30: 2.19072 | AA30: 0.15991
W31: 2.86 | X31: 6.67 | Y31: 6.59 | Z31: 8.16309 | AA31: 0.95475
W32: 1.13 | X32: 7.53 | Y32: 1.06 | Z32: 1.28284 | AA32: 0.55857

Sheet 逻辑回归
B1: 肥胖与心血管病 | I1: 上海人口回归 | P1: 汽车销售 | Y1: 蝾螈的寿命
B2: BWI | C2: 有心血管疾病 | D2: 无心血管疾病 | E2: 调查人数 | F2: 患病率 | G2: 预测概率 | I2: 年龄0 | J2: 婚姻状况 | K2: 现有人数 | L2: 死亡数 | M2: 死亡率 | N2: 存活人数 | P2: 号 | Q2: 性别 | R2: 婚姻状况 | S2: 年龄 | T2: 国别 | U2: 尺寸 | V2: 车型 | W2: 年青?(<30) | Y2: 编号 | Z2: 生存时间 | AA2: 区域 | AB2: 毒性水平
B3: 25 | C3: 68 | D3: 42 | E3: 110 | F3: 0.618 | G3: 0.597 | I3: 27 | J3: 4未婚 | K3: 318869 | L3: 349 | M3: 0.10945 | N3: 318520 | P3: 1 | Q3: 男 | R3: 已婚 | S3: 34 | T3: 美国 | U3: 大 | V3: 家用 | W3: 非年青 | Y3: 1 | Z3: 1 | AA3: 1 | AB3: 62
B4: 26 | C4: 55 | D4: 38 | E4: 93 | F4: 0.591 | G4: 0.657 | I4: 27 | J4: 1有配偶 | K4: 973796 | L4: 417 | M4: 0.04282 | N4: 973379 | P4: 2 | Q4: 男 | R4: 未婚 | S4: 36 | T4: 日本 | U4: 小 | V4: 跑车 | W4: 非年青 | Y4: 2 | Z4: 1 | AA4: 2 | AB4: 46
B5: 27 | C5: 66 | D5: 20 | E5: 86 | F5: 0.767 | G5: 0.712 | I5: 27 | J5: 2丧偶 | K5: 944 | L5: 4 | M5: 0.42373 | N5: 940 | P5: 3 | Q5: 男 | R5: 已婚 | S5: 23 | T5: 日本 | U5: 小 | V5: 家用 | W5: 年青 | Y5: 3 | Z5: 2 | AA5: 1 | AB5: 48.5
B6: 28 | C6: 32 | D6: 10 | E6: 42 | F6: 0.762 | G6: 0.762 | I6: 27 | J6: 3离婚 | K6: 6165 | L6: 11 | M6: 0.17843 | N6: 6154 | P6: 4 | Q6: 男 | R6: 未婚 | S6: 29 | T6: 美国 | U6: 大 | V6: 家用 | W6: 年青 | Y6: 4 | Z6: 3 | AA6: 2 | AB6: 32
B7: 29 | C7: 21 | D7: 7 | E7: 28 | F7: 0.75 | G7: 0.805 | I7: 32 | J7: 4未婚 | K7: 135589 | L7: 329 | M7: 0.24265 | N7: 135260 | P7: 5 | Q7: 男 | R7: 已婚 | S7: 39 | T7: 美国 | U7: 中 | V7: 家用 | W7: 非年青 | Y7: 5 | Z7: 2 | AA7: 1 | AB7: 63.5
B8: 30 | C8: 25 | D8: 4 | E8: 29 | F8: 0.862 | G8: 0.843 | I8: 32 | J8: 1有配偶 | K8: 1495515 | L8: 878 | M8: 0.05871 | N8: 1494637 | P8: 6 | Q8: 男 | R8: 未婚 | S8: 34 | T8: 日本 | U8: 中 | V8: 家用 | W8: 非年青 | Y8: 6 | Z8: 1 | AA8: 1 | AB8: 41.25
I9: 32 | J9: 2丧偶 | K9: 2738 | L9: 12 | M9: 0.43828 | N9: 2726 | P9: 7 | Q9: 女 | R9: 已婚 | S9: 42 | T9: 美国 | U9: 大 | V9: 家用 | W9: 非年青 | Y9: 7 | Z9: 2 | AA9: 2 | AB9: 40
I10: 32 | J10: 3离婚 | K10: 16333 | L10: 26 | M10: 0.15919 | N10: 16307 | P10: 8 | Q10: 女 | R10: 已婚 | S10: 40 | T10: 欧洲 | U10: 中 | V10: 家用 | W10: 非年青 | Y10: 8 | Z10: 3 | AA10: 1 | AB10: 34.25
I11: 37 | J11: 4未婚 | K11: 52427 | L11: 214 | M11: 0.40819 | N11: 52213 | P11: 9 | Q11: 男 | R11: 已婚 | S11: 28 | T11: 美国 | U11: 中 | V11: 跑车 | W11: 年青 | Y11: 9 | Z11: 2 | AA11: 1 | AB11: 34.75
I12: 37 | J12: 1有配偶 | K12: 1354019 | L12: 1269 | M12: 0.09372 | N12: 1352750 | P12: 10 | Q12: 女 | R12: 已婚 | S12: 26 | T12: 美国 | U12: 中 | V12: 家用 | W12: 年青 | Y12: 10 | Z12: 1 | AA12: 2 | AB12: 46.25
I13: 37 | J13: 2丧偶 | K13: 5383 | L13: 16 | M13: 0.29723 | N13: 5367 | P13: 11 | Q13: 女 | R13: 已婚 | S13: 26 | T13: 欧洲 | U13: 小 | V13: 跑车 | W13: 年青 | Y13: 11 | Z13: 2 | AA13: 1 | AB13: 43.5
I14: 37 | J14: 3离婚 | K14: 17901 | L14: 26 | M14: 0.14524 | N14: 17875 | P14: 12 | Q14: 男 | R14: 未婚 | S14: 26 | T14: 欧洲 | U14: 中 | V14: 跑车 | W14: 年青 | Y14: 12 | Z14: 2 | AA14: 2 | AB14: 46
I15: 42 | J15: 4未婚 | K15: 21781 | L15: 128 | M15: 0.58767 | N15: 21653 | P15: 13 | Q15: 女 | R15: 已婚 | S15: 37 | T15: 美国 | U15: 中 | V15: 跑车 | W15: 非年青 | Y15: 13 | Z15: 2 | AA15: 1 | AB15: 42.5
I16: 42 | J16: 1有配偶 | K16: 926994 | L16: 1299 | M16: 0.14013 | N16: 925695 | P16: 14 | Q16: 男 | R16: 未婚 | S16: 25 | T16: 日本 | U16: 小 | V16: 跑车 | W16: 年青 | Y16: 14 | Z16: 1 | AA16: 2 | AB16: 53
I17: 42 | J17: 2丧偶 | K17: 9703 | L17: 32 | M17: 0.32979 | N17: 9671 | P17: 15 | Q17: 女 | R17: 未婚 | S17: 27 | T17: 日本 | U17: 中 | V17: 家用 | W17: 年青 | Y17: 15 | Z17: 1 | AA17: 2 | AB17: 43.5
I18: 42 | J18: 3离婚 | K18: 12343 | L18: 28 | M18: 0.22685 | N18: 12315 | P18: 16 | Q18: 男 | R18: 已婚 | S18: 41 | T18: 美国 | U18: 大 | V18: 家用 | W18: 非年青 | Y18: 16 | Z18: 1 | AA18: 1 | AB18: 56
I19: 47 | J19: 4未婚 | K19: 9242 | L19: 69 | M19: 0.74659 | N19: 9173 | P19: 17 | Q19: 男 | R19: 未婚 | S19: 35 | T19: 美国 | U19: 小 | V19: 跑车 | W19: 非年青 | Y19: 17 | Z19: 2 | AA19: 1 | AB19: 40
I20: 47 | J20: 1有配偶 | K20: 603685 | L20: 1357 | M20: 0.22479 | N20: 602328 | P20: 18 | Q20: 男 | R20: 未婚 | S20: 23 | T20: 美国 | U20: 中 | V20: 工作 | W20: 年青 | Y20: 18 | Z20: 1 | AA20: 2 | AB20: 48
I21: 47 | J21: 2丧偶 | K21: 11666 | L21: 45 | M21: 0.38574 | N21: 11621 | P21: 19 | Q21: 男 | R21: 已婚 | S21: 28 | T21: 日本 | U21: 小 | V21: 家用 | W21: 年青 | Y21: 19 | Z21: 2 | AA21: 1 | AB21: 46.5
I22: 47 | J22: 3离婚 | K22: 7870 | L22: 26 | M22: 0.33037 | N22: 7844 | P22: 20 | Q22: 男 | R22: 已婚 | S22: 38 | T22: 欧洲 | U22: 中 | V22: 家用 | W22: 非年青 | Y22: 20 | Z22: 2 | AA22: 2 | AB22: 72
I23: 52 | J23: 4未婚 | K23: 6441 | L23: 86 | M23: 1.3352 | N23: 6355 | P23: 21 | Q23: 女 | R23: 已婚 | S23: 25 | T23: 日本 | U23: 小 | V23: 家用 | W23: 年青 | Y23: 21 | Z23: 2 | AA23: 2 | AB23: 31
I24: 52 | J24: 1有配偶 | K24: 562182 | L24: 2107 | M24: 0.37479 | N24: 560075 | P24: 22 | Q24: 男 | R24: 已婚 | S24: 30 | T24: 日本 | U24: 中 | V24: 家用 | W24: 非年青 | Y24: 22 | Z24: 1 | AA24: 1 | AB24: 48
I25: 52 | J25: 2丧偶 | K25: 24099 | L25: 130 | M25: 0.53944 | N25: 23969 | P25: 23 | Q25: 男 | R25: 已婚 | S25: 36 | T25: 美国 | U25: 大 | V25: 家用 | W25: 非年青 | Y25: 23 | Z25: 2 | AA25: 2 | AB25: 36.5
I26: 52 | J26: 3离婚 | K26: 7191 | L26: 38 | M26: 0.52844 | N26: 7153 | P26: 24 | Q26: 女 | R26: 未婚 | S26: 29 | T26: 欧洲 | U26: 小 | V26: 跑车 | W26: 年青 | Y26: 24 | Z26: 2 | AA26: 2 | AB26: 43.75
I27: 57 | J27: 4未婚 | K27: 5847 | L27: 99 | M27: 1.69318 | N27: 5748 | P27: 25 | Q27: 女 | R27: 已婚 | S27: 31 | T27: 欧洲 | U27: 中 | V27: 家用 | W27: 非年青 | Y27: 25 | Z27: 2 | AA27: 1 | AB27: 34.25
I28: 57 | J28: 1有配偶 | K28: 680892 | L28: 4255 | M28: 0.62492 | N28: 676637 | P28: 26 | Q28: 女 | R28: 已婚 | S28: 26 | T28: 欧洲 | U28: 中 | V28: 跑车 | W28: 年青 | Y28: 26 | Z28: 2 | AA28: 1 | AB28: 41.25
I29: 57 | J29: 2丧偶 | K29: 57015 | L29: 446 | M29: 0.78225 | N29: 56569 | P29: 27 | Q29: 男 | R29: 未婚 | S29: 23 | T29: 日本 | U29: 小 | V29: 跑车 | W29: 年青 | Y29: 27 | Z29: 2 | AA29: 2 | AB29: 41.75
I30: 57 | J30: 3离婚 | K30: 9106 | L30: 77 | M30: 0.8456 | N30: 9029 | P30: 28 | Q30: 女 | R30: 已婚 | S30: 31 | T30: 美国 | U30: 中 | V30: 跑车 | W30: 非年青 | Y30: 28 | Z30: 2 | AA30: 2 | AB30: 45.25
I31: 62 | J31: 4未婚 | K31: 4343 | L31: 93 | M31: 2.14138 | N31: 4250 | P31: 29 | Q31: 女 | R31: 已婚 | S31: 31 | T31: 日本 | U31: 小 | V31: 跑车 | W31: 非年青 | Y31: 29 | Z31: 2 | AA31: 1 | AB31: 43.5
I32: 62 | J32: 1有配偶 | K32: 536601 | L32: 5869 | M32: 1.09374 | N32: 530732 | P32: 30 | Q32: 男 | R32: 已婚 | S32: 35 | T32: 美国 | U32: 小 | V32: 跑车 | W32: 非年青 | Y32: 30 | Z32: 2 | AA32: 2 | AB32: 53
I33: 62 | J33: 2丧偶 | K33: 89970 | L33: 1083 | M33: 1.20373 | N33: 88887 | P33: 31 | Q33: 女 | R33: 已婚 | S33: 25 | T33: 日本 | U33: 中 | V33: 家用 | W33: 年青 | Y33: 31 | Z33: 3 | AA33: 1 | AB33: 38
I34: 62 | J34: 3离婚 | K34: 8768 | L34: 118 | M34: 1.3458 | N34: 8650 | P34: 32 | Q34: 男 | R34: 未婚 | S34: 21 | T34: 美国 | U34: 小 | V34: 跑车 | W34: 年青 | Y34: 32 | Z34: 2 | AA34: 2 | AB34: 59
I35: 67 | J35: 4未婚 | K35: 3423 | L35: 120 | M35: 3.5057 | N35: 3303 | P35: 33 | Q35: 女 | R35: 已婚 | S35: 28 | T35: 欧洲 | U35: 中 | V35: 家用 | W35: 年青 | Y35: 33 | Z35: 2 | AA35: 1 | AB35: 52.5
I36: 67 | J36: 1有配偶 | K36: 377263 | L36: 7241 | M36: 1.91935 | N36: 370022 | P36: 34 | Q36: 男 | R36: 已婚 | S36: 27 | T36: 日本 | U36: 小 | V36: 工作 | W36: 年青 | Y36: 34 | Z36: 2 | AA36: 2 | AB36: 42.75
I37: 67 | J37: 2丧偶 | K37: 123005 | L37: 2351 | M37: 1.9113 | N37: 120654 | P37: 35 | Q37: 男 | R37: 已婚 | S37: 35 | T37: 美国 | U37: 大 | V37: 工作 | W37: 非年青 | Y37: 35 | Z37: 2 | AA37: 2 | AB37: 31.5
I38: 67 | J38: 3离婚 | K38: 7615 | L38: 160 | M38: 2.10112 | N38: 7455 | P38: 36 | Q38: 男 | R38: 未婚 | S38: 24 | T38: 日本 | U38: 中 | V38: 跑车 | W38: 年青 | Y38: 36 | Z38: 2 | AA38: 2 | AB38: 43.5
I39: 72 | J39: 4未婚 | K39: 5292 | L39: 435 | M39: 8.21995 | N39: 4857 | P39: 37 | Q39: 女 | R39: 未婚 | S39: 29 | T39: 美国 | U39: 中 | V39: 家用 | W39: 年青 | Y39: 37 | Z39: 2 | AA39: 2 | AB39: 40
I40: 72 | J40: 1有配偶 | K40: 354609 | L40: 20271 | M40: 5.71644 | N40: 334338 | P40: 38 | Q40: 男 | R40: 已婚 | S40: 34 | T40: 欧洲 | U40: 小 | V40: 家用 | W40: 非年青 | Y40: 38 | Z40: 2 | AA40: 1 | AB40: 40.5
I41: 72 | J41: 2丧偶 | K41: 372391 | L41: 29842 | M41: 8.01362 | N41: 342549 | P41: 39 | Q41: 女 | R41: 已婚 | S41: 28 | T41: 欧洲 | U41: 中 | V41: 家用 | W41: 年青 | Y41: 39 | Z41: 2 | AA41: 2 | AB41: 60
I42: 72 | J42: 3离婚 | K42: 7820 | L42: 414 | M42: 5.29412 | N42: 7406 | P42: 40 | Q42: 男 | R42: 已婚 | S42: 37 | T42: 美国 | U42: 小 | V42: 工作 | W42: 非年青 | Y42: 40 | Z42: 3 | AA42: 1 | AB42: 57.5
P43: 41 | Q43: 女 | R43: 已婚 | S43: 25 | T43: 日本 | U43: 小 | V43: 跑车 | W43: 年青 | Y43: 41 | Z43: 2 | AA43: 1 | AB43: 48.75
P44: 42 | Q44: 女 | R44: 已婚 | S44: 24 | T44: 美国 | U44: 中 | V44: 跑车 | W44: 年青 | Y44: 42 | Z44: 2 | AA44: 1 | AB44: 44.5
P45: 43 | Q45: 女 | R45: 未婚 | S45: 23 | T45: 美国 | U45: 小 | V45: 跑车 | W45: 年青 | Y45: 43 | Z45: 1 | AA45: 1 | AB45: 49.5
P46: 44 | Q46: 女 | R46: 未婚 | S46: 25 | T46: 日本 | U46: 中 | V46: 跑车 | W46: 年青 | Y46: 44 | Z46: 2 | AA46: 2 | AB46: 33.75
P47: 45 | Q47: 男 | R47: 已婚 | S47: 34 | T47: 美国 | U47: 中 | V47: 家用 | W47: 非年青 | Y47: 45 | Z47: 2 | AA47: 1 | AB47: 43.5
P48: 46 | Q48: 男 | R48: 未婚 | S48: 25 | T48: 日本 | U48: 小 | V48: 家用 | W48: 年青 | Y48: 46 | Z48: 2 | AA48: 2 | AB48: 48
P49: 47 | Q49: 女 | R49: 已婚 | S49: 31 | T49: 日本 | U49: 中 | V49: 家用 | W49: 非年青 | Y49: 47 | Z49: 3 | AA49: 1 | AB49: 34
P50: 48 | Q50: 男 | R50: 未婚 | S50: 26 | T50: 美国 | U50: 中 | V50: 跑车 | W50: 年青 | Y50: 48 | Z50: 1 | AA50: 1 | AB50: 50
P51: 49 | Q51: 男 | R51: 已婚 | S51: 31 | T51: 欧洲 | U51: 小 | V51: 工作 | W51: 非年青 | Y51: 49 | Z51: 3 | AA51: 2 | AB51: 35
P52: 50 | Q52: 男 | R52: 已婚 | S52: 34 | T52: 欧洲 | U52: 小 | V52: 跑车 | W52: 非年青 | Y52: 50 | Z52: 1 | AA52: 1 | AB52: 49
P53: 51 | Q53: 女 | R53: 已婚 | S53: 29 | T53: 日本 | U53: 小 | V53: 家用 | W53: 年青 | Y53: 51 | Z53: 2 | AA53: 2 | AB53: 43.5
P54: 52 | Q54: 男 | R54: 已婚 | S54: 33 | T54: 美国 | U54: 中 | V54: 家用 | W54: 非年青 | Y54: 52 | Z54: 3 | AA54: 2 | AB54: 37.25
P55: 53 | Q55: 女 | R55: 已婚 | S55: 32 | T55: 日本 | U55: 中 | V55: 家用 | W55: 非年青 | Y55: 53 | Z55: 3 | AA55: 2 | AB55: 39
P56: 54 | Q56: 男 | R56: 已婚 | S56: 36 | T56: 日本 | U56: 小 | V56: 家用 | W56: 非年青 | Y56: 54 | Z56: 3 | AA56: 1 | AB56: 34.5
P57: 55 | Q57: 男 | R57: 未婚 | S57: 32 | T57: 日本 | U57: 中 | V57: 家用 | W57: 非年青 | Y57: 55 | Z57: 2 | AA57: 1 | AB57: 47.5
P58: 56 | Q58: 男 | R58: 已婚 | S58: 27 | T58: 美国 | U58: 小 | V58: 家用 | W58: 年青 | Y58: 56 | Z58: 1 | AA58: 2 | AB58: 42
P59: 57 | Q59: 男 | R59: 已婚 | S59: 28 | T59: 日本 | U59: 中 | V59: 跑车 | W59: 年青 | Y59: 57 | Z59: 2 | AA59: 2 | AB59: 45.5
P60: 58 | Q60: 男 | R60: 未婚 | S60: 27 | T60: 美国 | U60: 大 | V60: 家用 | W60: 年青 | Y60: 58 | Z60: 2 | AA60: 2 | AB60: 38.5
P61: 59 | Q61: 男 | R61: 已婚 | S61: 36 | T61: 欧洲 | U61: 小 | V61: 跑车 | W61: 非年青 | Y61: 59 | Z61: 2 | AA61: 1 | AB61: 36.5
P62: 60 | Q62: 女 | R62: 已婚 | S62: 27 | T62: 美国 | U62: 大 | V62: 家用 | W62: 年青 | Y62: 60 | Z62: 2 | AA62: 2 | AB62: 37.5
P63: 61 | Q63: 男 | R63: 已婚 | S63: 37 | T63: 美国 | U63: 大 | V63: 家用 | W63: 非年青 | Y63: 61 | Z63: 3 | AA63: 1 | AB63: 38.5
P64: 62 | Q64: 女 | R64: 未婚 | S64: 31 | T64: 日本 | U64: 小 | V64: 工作 | W64: 非年青 | Y64: 62 | Z64: 2 | AA64: 2 | AB64: 47
P65: 63 | Q65: 男 | R65: 已婚 | S65: 29 | T65: 日本 | U65: 小 | V65: 家用 | W65: 年青 | Y65: 63 | Z65: 2 | AA65: 2 | AB65: 39.75
P66: 64 | Q66: 男 | R66: 已婚 | S66: 38 | T66: 美国 | U66: 中 | V66: 家用 | W66: 非年青 | Y66: 64 | Z66: 1 | AA66: 1 | AB66: 60
P67: 65 | Q67: 男 | R67: 已婚 | S67: 37 | T67: 日本 | U67: 中 | V67: 家用 | W67: 非年青 | Y67: 65 | Z67: 2 | AA67: 2 | AB67: 41
P68: 66 | Q68: 男 | R68: 已婚 | S68: 38 | T68: 日本 | U68: 小 | V68: 家用 | W68: 非年青 | Y68: 66 | Z68: 2 | AA68: 1 | AB68: 41
P69: 67 | Q69: 男 | R69: 已婚 | S69: 31 | T69: 欧洲 | U69: 中 | V69: 家用 | W69: 非年青 | Y69: 67 | Z69: 3 | AA69: 1 | AB69: 30
P70: 68 | Q70: 男 | R70: 已婚 | S70: 39 | T70: 美国 | U70: 大 | V70: 家用 | W70: 非年青 | Y70: 68 | Z70: 2 | AA70: 2 | AB70: 45
P71: 69 | Q71: 女 | R71: 已婚 | S71: 37 | T71: 美国 | U71: 大 | V71: 家用 | W71: 非年青 | Y71: 69 | Z71: 2 | AA71: 2 | AB71: 51
P72: 70 | Q72: 男 | R72: 未婚 | S72: 36 | T72: 日本 | U72: 小 | V72: 工作 | W72: 非年青 | Y72: 70 | Z72: 2 | AA72: 2 | AB72: 35.25
P73: 71 | Q73: 女 | R73: 已婚 | S73: 37 | T73: 欧洲 | U73: 小 | V73: 跑车 | W73: 非年青 | Y73: 71 | Z73: 1 | AA73: 2 | AB73: 40.5
P74: 72 | Q74: 男 | R74: 未婚 | S74: 27 | T74: 日本 | U74: 小 | V74: 跑车 | W74: 年青 | Y74: 72 | Z74: 2 | AA74: 2 | AB74: 39.5
P75: 73 | Q75: 男 | R75: 未婚 | S75: 26 | T75: 美国 | U75: 大 | V75: 工作 | W75: 年青 | Y75: 73 | Z75: 3 | AA75: 2 | AB75: 36
P76: 74 | Q76: 女 | R76: 已婚 | S76: 23 | T76: 美国 | U76: 中 | V76: 家用 | W76: 年青
P77: 75 | Q77: 女 | R77: 未婚 | S77: 28 | T77: 欧洲 | U77: 大 | V77: 工作 | W77: 年青
P78: 76 | Q78: 女 | R78: 未婚 | S78: 29 | T78: 日本 | U78: 小 | V78: 工作 | W78: 年青
P79: 77 | Q79: 男 | R79: 已婚 | S79: 35 | T79: 欧洲 | U79: 中 | V79: 家用 | W79: 非年青
P80: 78 | Q80: 女 | R80: 已婚 | S80: 40 | T80: 日本 | U80: 小 | V80: 工作 | W80: 非年青
P81: 79 | Q81: 男 | R81: 已婚 | S81: 44 | T81: 日本 | U81: 小 | V81: 跑车 | W81: 非年青
P82: 80 | Q82: 男 | R82: 已婚 | S82: 35 | T82: 美国 | U82: 小 | V82: 家用 | W82: 非年青
P83: 81 | Q83: 男 | R83: 已婚 | S83: 30 | T83: 日本 | U83: 小 | V83: 家用 | W83: 非年青
P84: 82 | Q84: 男 | R84: 已婚 | S84: 27 | T84: 美国 | U84: 大 | V84: 工作 | W84: 年青
P85: 83 | Q85: 女 | R85: 未婚 | S85: 24 | T85: 美国 | U85: 中 | V85: 家用 | W85: 年青
P86: 84 | Q86: 女 | R86: 已婚 | S86: 35 | T86: 美国 | U86: 中 | V86: 家用 | W86: 非年青
P87: 85 | Q87: 女 | R87: 已婚 | S87: 26 | T87: 日本 | U87: 小 | V87: 跑车 | W87: 年青
P88: 86 | Q88: 女 | R88: 已婚 | S88: 32 | T88: 日本 | U88: 小 | V88: 工作 | W88: 非年青
P89: 87 | Q89: 男 | R89: 未婚 | S89: 22 | T89: 日本 | U89: 中 | V89: 家用 | W89: 年青
P90: 88 | Q90: 女 | R90: 已婚 | S90: 25 | T90: 美国 | U90: 小 | V90: 家用 | W90: 年青
P91: 89 | Q91: 男 | R91: 已婚 | S91: 33 | T91: 日本 | U91: 中 | V91: 家用 | W91: 非年青
P92: 90 | Q92: 女 | R92: 已婚 | S92: 37 | T92: 美国 | U92: 大 | V92: 家用 | W92: 非年青
P93: 91 | Q93: 男 | R93: 已婚 | S93: 27 | T93: 日本 | U93: 小 | V93: 家用 | W93: 年青
P94: 92 | Q94: 男 | R94: 已婚 | S94: 38 | T94: 日本 | U94: 中 | V94: 工作 | W94: 非年青
P95: 93 | Q95: 女 | R95: 未婚 | S95: 25 | T95: 日本 | U95: 小 | V95: 跑车 | W95: 年青
P96: 94 | Q96: 男 | R96: 未婚 | S96: 24 | T96: 日本 | U96: 小 | V96: 工作 | W96: 年青
P97: 95 | Q97: 男 | R97: 已婚 | S97: 25 | T97: 美国 | U97: 小 | V97: 工作 | W97: 年青
P98: 96 | Q98: 男 | R98: 已婚 | S98: 28 | T98: 日本 | U98: 小 | V98: 跑车 | W98: 年青
P99: 97 | Q99: 男 | R99: 已婚 | S99: 20 | T99: 日本 | U99: 小 | V99: 家用 | W99: 年青
P100: 98 | Q100: 女 | R100: 已婚 | S100: 25 | T100: 日本 | U100: 大 | V100: 工作 | W100: 年青
P101: 99 | Q101: 女 | R101: 已婚 | S101: 39 | T101: 欧洲 | U101: 大 | V101: 工作 | W101: 非年青
P102: 100 | Q102: 男 | R102: 已婚 | S102: 28 | T102: 日本 | U102: 中 | V102: 跑车 | W102: 年青
P103: 101 | Q103: 女 | R103: 已婚 | S103: 32 | T103: 日本 | U103: 小 | V103: 家用 | W103: 非年青
P104: 102 | Q104: 男 | R104: 已婚 | S104: 22 | T104: 美国 | U104: 中 | V104: 家用 | W104: 年青
P105: 103 | Q105: 男 | R105: 已婚 | S105: 28 | T105: 日本 | U105: 中 | V105: 家用 | W105: 年青
P106: 104 | Q106: 女 | R106: 已婚 | S106: 27 | T106: 日本 | U106: 中 | V106: 家用 | W106: 年青
P107: 105 | Q107: 男 | R107: 已婚 | S107: 38 | T107: 日本 | U107: 中 | V107: 跑车 | W107: 非年青
P108: 106 | Q108: 男 | R108: 已婚 | S108: 33 | T108: 欧洲 | U108: 小 | V108: 家用 | W108: 非年青
P109: 107 | Q109: 男 | R109: 未婚 | S109: 35 | T109: 日本 | U109: 小 | V109: 家用 | W109: 非年青
P110: 108 | Q110: 女 | R110: 已婚 | S110: 24 | T110: 美国 | U110: 中 | V110: 跑车 | W110: 年青
P111: 109 | Q111: 男 | R111: 已婚 | S111: 27 | T111: 美国 | U111: 小 | V111: 跑车 | W111: 年青
P112: 110 | Q112: 女 | R112: 未婚 | S112: 40 | T112: 美国 | U112: 小 | V112: 工作 | W112: 非年青
P113: 111 | Q113: 女 | R113: 已婚 | S113: 27 | T113: 日本 | U113: 小 | V113: 跑车 | W113: 年青
P114: 112 | Q114: 女 | R114: 未婚 | S114: 25 | T114: 欧洲 | U114: 中 | V114: 跑车 | W114: 年青
P115: 113 | Q115: 男 | R115: 未婚 | S115: 26 | T115: 美国 | U115: 中 | V115: 跑车 | W115: 年青
P116: 114 | Q116: 男 | R116: 未婚 | S116: 30 | T116: 日本 | U116: 小 | V116: 跑车 | W116: 非年青
P117: 115 | Q117: 男 | R117: 未婚 | S117: 26 | T117: 欧洲 | U117: 大 | V117: 工作 | W117: 年青
P118: 116 | Q118: 男 | R118: 未婚 | S118: 23 | T118: 日本 | U118: 中 | V118: 工作 | W118: 年青
P119: 117 | Q119: 男 | R119: 未婚 | S119: 24 | T119: 欧洲 | U119: 中 | V119: 跑车 | W119: 年青
P120: 118 | Q120: 男 | R120: 已婚 | S120: 28 | T120: 日本 | U120: 中 | V120: 工作 | W120: 年青
P121: 119 | Q121: 男 | R121: 已婚 | S121: 43 | T121: 欧洲 | U121: 小 | V121: 家用 | W121: 非年青
P122: 120 | Q122: 男 | R122: 未婚 | S122: 36 | T122: 美国 | U122: 中 | V122: 跑车 | W122: 非年青
P123: 121 | Q123: 女 | R123: 未婚 | S123: 24 | T123: 日本 | U123: 小 | V123: 家用 | W123: 年青
P124: 122 | Q124: 女 | R124: 未婚 | S124: 60 | T124: 日本 | U124: 小 | V124: 家用 | W124: 非年青
P125: 123 | Q125: 女 | R125: 未婚 | S125: 24 | T125: 美国 | U125: 中 | V125: 跑车 | W125: 年青
P126: 124 | Q126: 女 | R126: 已婚 | S126: 30 | T126: 日本 | U126: 中 | V126: 家用 | W126: 非年青
P127: 125 | Q127: 男 | R127: 已婚 | S127: 30 | T127: 美国 | U127: 小 | V127: 家用 | W127: 非年青
P128: 126 | Q128: 男 | R128: 已婚 | S128: 31 | T128: 美国 | U128: 中 | V128: 家用 | W128: 非年青
P129: 127 | Q129: 女 | R129: 已婚 | S129: 28 | T129: 美国 | U129: 小 | V129: 家用 | W129: 年青
P130: 128 | Q130: 男 | R130: 未婚 | S130: 26 | T130: 日本 | U130: 小 | V130: 跑车 | W130: 年青
P131: 129 | Q131: 女 | R131: 未婚 | S131: 41 | T131: 美国 | U131: 大 | V131: 工作 | W131: 非年青
P132: 130 | Q132: 女 | R132: 未婚 | S132: 35 | T132: 欧洲 | U132: 中 | V132: 跑车 | W132: 非年青
P133: 131 | Q133: 女 | R133: 未婚 | S133: 25 | T133: 日本 | U133: 中 | V133: 跑车 | W133: 年青
P134: 132 | Q134: 男 | R134: 未婚 | S134: 31 | T134: 日本 | U134: 中 | V134: 跑车 | W134: 非年青
P135: 133 | Q135: 女 | R135: 已婚 | S135: 30 | T135: 日本 | U135: 小 | V135: 跑车 | W135: 非年青
P136: 134 | Q136: 女 | R136: 已婚 | S136: 34 | T136: 美国 | U136: 中 | V136: 家用 | W136: 非年青
P137: 135 | Q137: 女 | R137: 已婚 | S137: 33 | T137: 欧洲 | U137: 中 | V137: 家用 | W137: 非年青
P138: 136 | Q138: 男 | R138: 未婚 | S138: 31 | T138: 美国 | U138: 大 | V138: 工作 | W138: 非年青
P139: 137 | Q139: 男 | R139: 已婚 | S139: 33 | T139: 美国 | U139: 大 | V139: 家用 | W139: 非年青
P140: 138 | Q140: 男 | R140: 已婚 | S140: 33 | T140: 日本 | U140: 小 | V140: 工作 | W140: 非年青
P141: 139 | Q141: 女 | R141: 已婚 | S141: 28 | T141: 日本 | U141: 小 | V141: 工作 | W141: 年青
P142: 140 | Q142: 女 | R142: 已婚 | S142: 32 | T142: 美国 | U142: 小 | V142: 家用 | W142: 非年青
P143: 141 | Q143: 女 | R143: 已婚 | S143: 39 | T143: 日本 | U143: 中 | V143: 家用 | W143: 非年青
P144: 142 | Q144: 女 | R144: 已婚 | S144: 29 | T144: 美国 | U144: 大 | V144: 工作 | W144: 年青
P145: 143 | Q145: 女 | R145: 未婚 | S145: 21 | T145: 美国 | U145: 中 | V145: 家用 | W145: 年青
P146: 144 | Q146: 女 | R146: 已婚 | S146: 29 | T146: 美国 | U146: 中 | V146: 家用 | W146: 年青
P147: 145 | Q147: 女 | R147: 已婚 | S147: 26 | T147: 美国 | U147: 中 | V147: 家用 | W147: 年青
P148: 146 | Q148: 女 | R148: 未婚 | S148: 23 | T148: 日本 | U148: 小 | V148: 跑车 | W148: 年青
P149: 147 | Q149: 女 | R149: 已婚 | S149: 29 | T149: 欧洲 | U149: 大 | V149: 家用 | W149: 年青
P150: 148 | Q150: 男 | R150: 未婚 | S150: 35 | T150: 日本 | U150: 中 | V150: 跑车 | W150: 非年青
P151: 149 | Q151: 男 | R151: 已婚 | S151: 33 | T151: 美国 | U151: 大 | V151: 家用 | W151: 非年青
P152: 150 | Q152: 女 | R152: 未婚 | S152: 33 | T152: 日本 | U152: 小 | V152: 跑车 | W152: 非年青
P153: 151 | Q153: 男 | R153: 已婚 | S153: 29 | T153: 日本 | U153: 小 | V153: 家用 | W153: 年青
P154: 152 | Q154: 男 | R154: 未婚 | S154: 23 | T154: 日本 | U154: 小 | V154: 跑车 | W154: 年青
P155: 153 | Q155: 男 | R155: 未婚 | S155: 35 | T155: 日本 | U155: 小 | V155: 跑车 | W155: 非年青
P156: 154 | Q156: 女 | R156: 已婚 | S156: 24 | T156: 欧洲 | U156: 小 | V156: 家用 | W156: 年青
P157: 155 | Q157: 男 | R157: 已婚 | S157: 39 | T157: 日本 | U157: 中 | V157: 工作 | W157: 非年青
P158: 156 | Q158: 男 | R158: 已婚 | S158: 33 | T158: 美国 | U158: 中 | V158: 家用 | W158: 非年青
P159: 157 | Q159: 男 | R159: 未婚 | S159: 30 | T159: 日本 | U159: 小 | V159: 家用 | W159: 非年青
P160: 158 | Q160: 女 | R160: 已婚 | S160: 26 | T160: 日本 | U160: 中 | V160: 跑车 | W160: 年青
P161: 159 | Q161: 女 | R161: 已婚 | S161: 36 | T161: 美国 | U161: 大 | V161: 家用 | W161: 非年青
P162: 160 | Q162: 女 | R162: 已婚 | S162: 25 | T162: 日本 | U162: 中 | V162: 家用 | W162: 年青
P163: 161 | Q163: 男 | R163: 未婚 | S163: 23 | T163: 日本 | U163: 中 | V163: 跑车 | W163: 年青
P164: 162 | Q164: 女 | R164: 已婚 | S164: 37 | T164: 欧洲 | U164: 小 | V164: 跑车 | W164: 非年青
P165: 163 | Q165: 男 | R165: 已婚 | S165: 34 | T165: 日本 | U165: 小 | V165: 工作 | W165: 非年青
P166: 164 | Q166: 女 | R166: 已婚 | S166: 31 | T166: 美国 | U166: 大 | V166: 家用 | W166: 非年青
P167: 165 | Q167: 女 | R167: 已婚 | S167: 39 | T167: 美国 | U167: 中 | V167: 家用 | W167: 非年青
P168: 166 | Q168: 女 | R168: 已婚 | S168: 41 | T168: 美国 | U168: 小 | V168: 工作 | W168: 非年青
P169: 167 | Q169: 女 | R169: 已婚 | S169: 39 | T169: 美国 | U169: 中 | V169: 跑车 | W169: 非年青
P170: 168 | Q170: 男 | R170: 已婚 | S170: 34 | T170: 美国 | U170: 大 | V170: 家用 | W170: 非年青
P171: 169 | Q171: 女 | R171: 未婚 | S171: 32 | T171: 美国 | U171: 中 | V171: 家用 | W171: 非年青
P172: 170 | Q172: 女 | R172: 已婚 | S172: 29 | T172: 美国 | U172: 中 | V172: 家用 | W172: 年青
P173: 171 | Q173: 女 | R173: 未婚 | S173: 23 | T173: 日本 | U173: 小 | V173: 跑车 | W173: 年青
P174: 172 | Q174: 男 | R174: 已婚 | S174: 41 | T174: 美国 | U174: 大 | V174: 家用 | W174: 非年青
P175: 173 | Q175: 女 | R175: 已婚 | S175: 27 | T175: 美国 | U175: 中 | V175: 家用 | W175: 年青
P176: 174 | Q176: 男 | R176: 未婚 | S176: 26 | T176: 日本 | U176: 小 | V176: 跑车 | W176: 年青
P177: 175 | Q177: 男 | R177: 已婚 | S177: 28 | T177: 日本 | U177: 中 | V177: 工作 | W177: 年青
P178: 176 | Q178: 女 | R178: 已婚 | S178: 37 | T178: 日本 | U178: 小 | V178: 家用 | W178: 非年青
P179: 177 | Q179: 女 | R179: 未婚 | S179: 39 | T179: 美国 | U179: 中 | V179: 家用 | W179: 非年青
P180: 178 | Q180: 男 | R180: 已婚 | S180: 32 | T180: 日本 | U180: 中 | V180: 工作 | W180: 非年青
P181: 179 | Q181: 男 | R181: 已婚 | S181: 34 | T181: 美国 | U181: 大 | V181: 家用 | W181: 非年青
P182: 180 | Q182: 女 | R182: 未婚 | S182: 29 | T182: 日本 | U182: 小 | V182: 家用 | W182: 年青
P183: 181 | Q183: 男 | R183: 未婚 | S183: 25 | T183: 日本 | U183: 小 | V183: 跑车 | W183: 年青
P184: 182 | Q184: 女 | R184: 已婚 | S184: 30 | T184: 日本 | U184: 小 | V184: 家用 | W184: 非年青
P185: 183 | Q185: 女 | R185: 已婚 | S185: 29 | T185: 美国 | U185: 大 | V185: 工作 | W185: 年青
P186: 184 | Q186: 男 | R186: 已婚 | S186: 32 | T186: 日本 | U186: 大 | V186: 家用 | W186: 非年青
P187: 185 | Q187: 女 | R187: 已婚 | S187: 31 | T187: 日本 | U187: 小 | V187: 工作 | W187: 非年青
P188: 186 | Q188: 男 | R188: 未婚 | S188: 22 | T188: 美国 | U188: 小 | V188: 跑车 | W188: 年青
P189: 187 | Q189: 男 | R189: 已婚 | S189: 31 | T189: 欧洲 | U189: 小 | V189: 跑车 | W189: 非年青
P190: 188 | Q190: 男 | R190: 已婚 | S190: 31 | T190: 日本 | U190: 小 | V190: 家用 | W190: 非年青
P191: 189 | Q191: 女 | R191: 已婚 | S191: 40 | T191: 美国 | U191: 中 | V191: 家用 | W191: 非年青
P192: 190 | Q192: 女 | R192: 已婚 | S192: 26 | T192: 美国 | U192: 小 | V192: 家用 | W192: 年青
P193: 191 | Q193: 男 | R193: 未婚 | S193: 23 | T193: 欧洲 | U193: 小 | V193: 跑车 | W193: 年青
P194: 192 | Q194: 男 | R194: 已婚 | S194: 35 | T194: 美国 | U194: 小 | V194: 家用 | W194: 非年青
P195: 193 | Q195: 男 | R195: 未婚 | S195: 26 | T195: 日本 | U195: 小 | V195: 跑车 | W195: 年青
P196: 194 | Q196: 女 | R196: 已婚 | S196: 29 | T196: 日本 | U196: 中 | V196: 家用 | W196: 年青
P197: 195 | Q197: 男 | R197: 未婚 | S197: 26 | T197: 日本 | U197: 小 | V197: 工作 | W197: 年青
P198: 196 | Q198: 女 | R198: 未婚 | S198: 31 | T198: 日本 | U198: 中 | V198: 家用 | W198: 非年青
P199: 197 | Q199: 男 | R199: 已婚 | S199: 25 | T199: 日本 | U199: 小 | V199: 跑车 | W199: 年青
P200: 198 | Q200: 女 | R200: 未婚 | S200: 45 | T200: 美国 | U200: 中 | V200: 家用 | W200: 非年青
... 105 more rows

Sheet 非参数检验
A1: 减肥药 | E1: 面粉重量 | J1: 单样本Wilcoxon | L1: 两组电池寿命 | O1: 长跑比赛 | R1: 四组钢板 | U1: 手机外壳
A2: x（服药前） | B2: y(服药后) | C2: d = x -y | E2: 序号 | F2: 面粉重量 | G2: 面粉-20 | H2: 符号 | J2: 22 | L2: A组寿命 | M2: B组寿命 | O2: A校 | P2: B校 | R2: 材料 | S2: 断裂强度 | V2: 测量员A | W2: 测量员B | X2: 测量员C | Y2: 测量员D
A3: 90 | B3: 83 | C3: 7 | E3: 1 | F3: 20.21 | G3: 0.21 | H3: 1 | J3: 29 | L3: 6.2 | M3: 3.9 | O3: 26 | P3: 36 | R3: A | S3: 1847 | U3: 外壳1 | V3: 81 | W3: 82 | X3: 86 | Y3: 84
A4: 79 | B4: 70 | C4: 9 | E4: 2 | F4: 19.95 | G4: -0.05 | H4: -1 | J4: 71 | L4: 17.3 | M4: 7.3 | O4: 11 | P4: 32 | R4: A | S4: 1813 | U4: 外壳2 | V4: 84 | W4: 83 | X4: 89 | Y4: 83
A5: 86 | B5: 80 | C5: 6 | E5: 3 | F5: 20.15 | G5: 0.15 | H5: 1 | J5: 34 | L5: 14.1 | M5: 4.4 | O5: 7 | P5: 62 | R5: A | S5: 1955 | U5: 外壳3 | V5: 80 | W5: 81 | X5: 84 | Y5: 82
A6: 88 | B6: 84 | C6: 4 | E6: 4 | F6: 20.07 | G6: 0.07 | H6: 1 | J6: 32 | L6: 9.3 | M6: 4.2 | O6: 48 | P6: 51 | R6: A | S6: 1904
A7: 92 | B7: 87 | C7: 5 | E7: 5 | F7: 19.91 | G7: -0.09 | H7: -1 | J7: 22 | L7: 11.3 | M7: 4.9 | O7: 19 | P7: 41 | R7: A | S7: 1846
A8: 79 | B8: 74 | C8: 5 | E8: 6 | F8: 19.99 | G8: -0.01 | H8: -1 | J8: 42 | L8: 6.5 | M8: 5.6 | O8: 35 | P8: 8 | R8: A | S8: 1854
A9: 76 | B9: 79 | C9: -3 | E9: 7 | F9: 20.08 | G9: 0.08 | H9: 1 | J9: 28 | L9: 6.8 | M9: 4.7 | O9: 16 | P9: 28 | R9: A | S9: 1898
A10: 87 | B10: 83 | C10: 4 | E10: 8 | F10: 20.16 | G10: 0.16 | H10: 1 | J10: 21 | L10: 6.1 | M10: 11.2 | O10: 10 | P10: 39 | R10: A | S10: 1838
A11: 102 | B11: 96 | C11: 6 | E11: 9 | F11: 19.99 | G11: -0.01 | H11: -1 | J11: 23 | L11: 6.3 | O11: 3 | P11: 6 | R11: A | S11: 1867
A12: 96 | B12: 90 | C12: 6 | E12: 10 | F12: 20.16 | G12: 0.16 | H12: 1 | J12: 36 | L12: 7.5 | O12: 5 | P12: 34 | R12: A | S12: 1853
E13: 11 | F13: 20.09 | G13: 0.09 | H13: 1 | J13: 27 | O13: 12 | R13: A | S13: 1833
E14: 12 | F14: 19.97 | G14: -0.03 | H14: -1 | O14: 22 | R14: A | S14: 1897
E15: 13 | F15: 20.05 | G15: 0.05 | H15: 1 | R15: A | S15: 1906
E16: 14 | F16: 20.27 | G16: 0.27 | H16: 1 | R16: A | S16: 1944
E17: 15 | F17: 19.96 | G17: -0.04 | H17: -1 | R17: A | S17: 1863
E18: 16 | F18: 20.06 | G18: 0.06 | H18: 1 | R18: A | S18: 1912
R19: B | S19: 1744
R20: B | S20: 1843
R21: B | S21: 1857
R22: B | S22: 1882
R23: B | S23: 1771
R24: B | S24: 1858
R25: B | S25: 1826
R26: B | S26: 1774
R27: B | S27: 1844
R28: B | S28: 1684
R29: B | S29: 1708
R30: B | S30: 1855
R31: B | S31: 1803
R32: B | S32: 1712
R33: B | S33: 1746
R34: B | S34: 1929
R35: B | S35: 1803
R36: B | S36: 1777
R37: C | S37: 2032
R38: C | S38: 1878
R39: C | S39: 1842
R40: C | S40: 1896
R41: C | S41: 1721
R42: C | S42: 1735
R43: C | S43: 1843
R44: C | S44: 1819
R45: C | S45: 1550
R46: C | S46: 1792
R47: C | S47: 2031
R48: D | S48: 1744
R49: D | S49: 1712
R50: D | S50: 1780
R51: D | S51: 1732
R52: D | S52: 2073
R53: D | S53: 1752
R54: D | S54: 1847
R55: D | S55: 2013
R56: D | S56: 1999
R57: D | S57: 1747
R58: D | S58: 1789
R59: D | S59: 1922
R60: D | S60: 1768
R61: D | S61: 1726
R62: D | S62: 1729
R63: D | S63: 1803
R64: D | S64: 1978
